{"text_format":"3","workbook":"xlsx","n_sheets":42,"sheets":["modReestrMO","Инструкция","Справочная информация","Лог обновления","Выбор субъекта РФ","Титульный","ГВС инвестиции","ГВС показатели","ГВС показатели (2)","Ссылки на публикации","Комментарии","Проверка","TEHSHEET","CheckCopy","AllSheetsInThisWorkbook","et_union","modInfo","REESTR_ORG","modHyperlink","modChange","modTitleSheetHeaders","modServiceModule","modClassifierValidate","Паспорт","REESTR_FILTERED","REESTR_MO","modfrmReestr","modDblClick","modfrmDateChoose","modfrmSphereChoose","modSheetMain01","modSheetMain03","modSheetMain04","modSheetMain06","modSheetMain07","modSheetMain08","modUpdTemplMain","modRegionSelectSub","modfrmCheckUpdates","modCommonProv","modProvGeneralProc","modThisWorkbook"],"not_rendered":{"images":107,"macros":1,"external_links":1,"defined_names":206},"read":"whole","date_system":"1900"}

{"sheet":"modReestrMO","index":0,"n_rows":0,"n_cols":0,"rows_kept":0,"hidden":true}

{"sheet":"Инструкция","index":1,"n_rows":76,"n_cols":6,"rows_kept":76,"merged":[[1,1,1,4],[2,2,2,3],[3,1,3,4],[5,2,5,4],[6,2,6,4],[7,2,7,4],[8,2,8,4],[9,2,9,4],[10,2,10,4],[11,2,11,4],[12,2,12,4],[13,3,13,4],[14,3,14,4],[15,3,15,4],[16,3,16,4],[17,3,17,4],[18,2,18,4],[19,2,19,3],[20,3,20,4],[21,3,21,4],[22,3,22,4],[23,3,23,4],[25,3,25,4],[26,2,26,4],[27,2,27,4],[28,2,28,4],[29,2,29,4],[30,2,30,4],[31,2,31,4],[32,2,32,4],[33,3,33,4],[34,3,34,4],[37,2,37,4],[38,2,38,4],[39,2,39,4],[40,2,40,4],[41,2,41,4],[42,2,42,4],[43,2,43,4],[44,2,44,4],[45,2,45,4],[46,2,46,4],[47,2,47,4],[55,2,55,4],[56,2,56,4],[57,2,57,4],[58,2,58,4],[59,2,59,4],[60,2,60,4],[61,2,61,4],[62,2,62,4],[63,2,63,4],[64,2,64,4],[65,2,65,4],[66,2,66,4],[67,2,67,4],[68,2,68,4],[69,2,69,4],[70,2,70,4],[76,2,76,4],[82,1,82,4]]}
[]
[null,{"$f":"\"Код шаблона: \" & GetCode()","v":"Код шаблона: JKH.OPEN.INFO.TARIFF.GVS"}]
[null,{"$f":"\"Версия \" & GetVersion()","v":"Версия 5.0.1"}]
[null,"Инструкция"]
[]
[null,null,"1.  Технические требования",null,null,"t"]
[null,null," • на рабочем месте должен быть установлен MS Office 2003, 2007, 2010 с полной версией MS Excel"]
[null,null," • макросы во время работы должны быть включены (!)"]
[null,null," • для корректной работы шаблона требуется выбрать низкий уровень безопасности"]
[null,null,"(В меню MS Excel 2003: Сервис | Макрос | Безопасность | выбрать нижний пункт «Низкая безопасность» | OK)"]
[null,null,"(В меню MS Excel 2007/2010: Параметры Excel | Центр управления безопасностью | Параметры центра управления безопасностью | Параметры макросов | Включить все макросы | ОК)"]
[null,null,"2.  Законодательная основа шаблона",null,null,"u"]
[null,null,"Данный шаблон разработан в соответствии с:"]
[null,null," • ","ПОСТАНОВЛЕНИЕМ от 30 декабря 2009 г. N 1140 «ОБ УТВЕРЖДЕНИИ СТАНДАРТОВ РАСКРЫТИЯ ИНФОРМАЦИИ ОРГАНИЗАЦИЯМИ КОММУНАЛЬНОГО КОМПЛЕКСА И СУБЪЕКТАМИ ЕСТЕСТВЕННЫХ МОНОПОЛИЙ, ОСУЩЕСТВЛЯЮЩИМИ ДЕЯТЕЛЬНОСТЬ В СФЕРЕ ОКАЗАНИЯ УСЛУГ ПО ПЕРЕДАЧЕ ТЕПЛОВОЙ ЭНЕРГИИ»"]
[{"$nulls":3},"Полный текст Постановления №1140 на сайте ФСТ России"]
[{"$nulls":3},{"$f":"\"Подробнее о сфере \"& TSphere_full","v":"Подробнее о сфере горячего водоснабжения"}]
[null,null," • ","ПОСТАНОВЛЕНИЕМ от 13 апреля 2010 г. N 237 «ОБ УТВЕРЖДЕНИИ ПРАВИЛ ОСУЩЕСТВЛЕНИЯ КОНТРОЛЯ ЗА СОБЛЮДЕНИЕМ ОРГАНИЗАЦИЯМИ КОММУНАЛЬНОГО КОМПЛЕКСА СТАНДАРТОВ РАСКРЫТИЯ ИНФОРМАЦИИ»"]
[{"$nulls":3},"Полный текст Постановления №237"]
[null,null,"3.  Условные обозначения",null,null,"u"]
[null,null,"Типы ячеек:"]
[null,null,"●"," - обязательные для заполнения;"]
[null,null,"●"," - предназначенные для заполнения;"]
[null,null,"●"," - с формулами и константами или заполняемые автоматически (например, при выборе организации)."]
[null,null,"●"," - ячейки с выбором значений до двойному клику (щелчку) (например, при выборе даты или данных из "]
[{"$nulls":3},"справочников)."]
[{"$nulls":3},"Пояснение к заполнению на листе."]
[null,null,"4.  Работа с реестрами",null,null,"u"]
[null,null,"Если в предложенном Вам списке необходимая организация (МР/МО) отсутствует, обновите реестр с помощью кнопки «Обновить реестр организаций» («Обновить реестр МО»)."]
[null,null,"В результате синхронизации с базой данных список организаций (МР/МО) будет заменён актуальным (механизм синхронизации требует подключения к сети Интернет и основан на использовании протокола HTTPS (TCP порт 443)). "]
[null,null,"Если после обновления Вам не удалось найти необходимую организацию в списке, обратитесь к ответственному за поддержание реестра Вашего региона. Информация о региональных органах регулирования доступна по ссылке:"]
[null,null,"http://www.fstrf.ru/regions/region/showlist"]
[null,null,"5.  Обновление шаблона",null,null,"u"]
[null,null,"Если Ваш компьютер имеет подключение к Интернет, можно автоматически проверять наличие доступных обновлений. Выберите способ оповещения о наличии обновлений для шаблона:"]
[null,null,"y","проверять доступные обновления (рекомендуется)"]
[{"$nulls":3},"никогда не проверять наличие обновлений (не рекомендуется)"]
[{"$nulls":4},"Чтобы проверить наличие обновлений, нажмите кнопку «Обновить текущую версию шаблона»."]
[{"$nulls":4},"Чтобы отобразить/скрыть лог обновления и статусные сообщения, нажмите кнопку \"Отобразить/скрыть лист Лог обновления\"."]
[null,null,"6.  Работа с листом «Проверка»",null,null,"u"]
[null,null,"• При сохранении шаблона осуществляется проверка корректности данных, в том числе на наличие значений в ячейках, обязательных для заполнения. "]
[null,null,"• Если какая-то ячейка не удовлетворяет условию проверки, на лист «Проверка» добавляется гиперссылка на данную ячейку и указывается причина ошибки."]
[null,null,"• В колонке «Статус» для каждого сообщения возможны 2 значения: ошибка и предупреждение. "]
[null,null,"• При наличии сообщений со статусом «Ошибка» шаблон будет отклонён системой и не будет загружен в хранилище данных, сообщения со статусом «Предупреждение» носят информационный характер, и такой шаблон будет принят системой."]
[]
[null,null,"• Если Вы работаете в табличном процессоре Microsoft Excel 2007 и выше, Вы можете использовать для работы формат XLSM (Книга Excel с поддержкой макросов)."]
[null,null,"• При сохранении не следует выбирать формат XLSX (Книга Excel), так как в указанном формате макросы, задействованные при работе с шаблоном, БЕЗВОЗВРАТНО УДАЛЯЮТСЯ."]
[null,null,"• После того, как будут устранены все замечания, при сохранении шаблона появится сообщение «Шаблон готов к сохранению без замечаний»."]
[]
[null,null,"7.  Организационно-технические консультации",null,null,"t"]
[{"$nulls":3},"ФИО:",""]
[{"$nulls":3},"Телефон:",""]
[{"$nulls":3},"E-mail:"]
[{"$nulls":3},"Web-сайт:","http://support.eias.ru/"]
[{"$nulls":3},"Комментарий",""]
[{"$nulls":3},"Дистрибутивы:","http://eias.ru/?page=show_distrs"]
[{"$nulls":4},"для устранения ошибок (напр., \"Compile error in hidden module\")"]
[null,null,"8.  Методология заполнения",null,null,"u"]
[null,null,"   Перед началом работы с шаблоном, на листе «Выбор субъекта РФ», Вам необходимо выбрать из выпадающего списка нужный регион. После выбора региона в шаблоне отобразятся листы для заполнения."]
[null,null,"   В разделе «Справочная информация» размещены фрагменты Постановления №1140 «СТАНДАРТЫ РАСКРЫТИЯ ИНФОРМАЦИИ ОРГАНИЗАЦИЯМИ КОММУНАЛЬНОГО КОМПЛЕКСА И СУБЪЕКТАМИ ЕСТЕСТВЕННЫХ МОНОПОЛИЙ, ОСУЩЕСТВЛЯЮЩИМИ ДЕЯТЕЛЬНОСТЬ В СФЕРЕ ОКАЗАНИЯ УСЛУГ ПО ПЕРЕДАЧЕ ТЕПЛОВОЙ ЭНЕРГИИ», относящиеся к данному шаблону. В случае вопросов по составу раскрываемой информации, срокам раскрытия и формату раскрытия Вы можете уточнить их в соответствующих документах."]
[null,null,"   На листе «Титульный» нужно заполнить все ячейки голубого цвета."]
[null,null,"   Для создания печатной формы необходимо выполнить щелчок левой кнопки мыши по значку принтера (левый верхний угол под заголовком) на листе «Титульный»."]
[null,null,"   В зависимости от выбранного значения в поле «Публикация» на листе «Титульный» изменяется содержание и количество листов."]
[null,null,{"$f":" IF(TSphere = \"ТБО\", \"   Перечислите все муниципальные районы, в которых организация осуществляет услуги по утилизации (захоронению) твердых бытовых отходов.\", \"   В случае, если тариф не дифференцируется по системам \"&IF(TSphere = \"ТС\",\"теплоснабжения\",\"коммунальной инфраструктуры\")&\", перечислите все муниципальные районы, в которых организация осуществляет услуги \" &TSphere_full&\".\")","v":"   В случае, если тариф не дифференцируется по системам коммунальной инфраструктуры, перечислите все муниципальные районы, в которых организация осуществляет услуги горячего водоснабжения."}]
[null,null,{"$f":" IF(TSphere = \"ТБО\", \"   Перечислите все муниципальные образования, в которых организация осуществляет услуги по утилизации (захоронению) твердых бытовых отходов.\", \"   В случае, если тариф не дифференцируется по системам \"&IF(TSphere = \"ТС\",\"теплоснабжения\",\"коммунальной инфраструктуры\")&\", перечислите все муниципальные образования, в которых организация осуществляет услуги \" &TSphere_full&\".\")","v":"   В случае, если тариф не дифференцируется по системам коммунальной инфраструктуры, перечислите все муниципальные образования, в которых организация осуществляет услуги горячего водоснабжения."}]
[null,null,"   Задайте период регулирования на листе «Титульный» , выбрав начало и окончание очередного периода с помощью календаря /выполните двойной щелчок по соответствующей синей ячейке/."]
[null,null,"   Для выбора того или иного источника публикации выполните двойной щелчок по синей ячейке напротив соответствующего источника. Если Вы снимаете галочку с пункта, то будут скрыты и очищены соответствующие строки на листе «Ссылки на публикации»."]
[null,null,"  На листе «Ссылки на публикации» «Адрес сайта в сети интернет» вводите, не нарушая цвет ячейки /если копируете гиперссылку из браузера, то выполните двойной щелчок левой кнопки мыши по ячейке и только после этого можете вставить скопированный элемент/."]
[null,null,"   При вводе даты на расчетных листах необходимо выполнить двойной щелчок левой кнопки мыши по соответствующей ячейке."]
[null,null,"   Если какой-либо из показателей на расчетных листах для Вашей организации отсутствует, введите в поле, обязательное для заполнение, «0» (для числовых показателей) и «-» (для текстовых). "]
[null,null,"   Внимательно следите за информационными сообщениями на расчетных листах. "]
[null,null,"   Все необходимые комментарии по всем формам Вы можете отразить на листе «Комментарии». "]
[null,null,"9.  Консультации по методологии заполнения",null,null,"u"]
[{"$nulls":3},"ФИО:",""]
[{"$nulls":3},"Телефон:",""]
[{"$nulls":3},"E-mail:","openinfo@eias.ru"]
[{"$nulls":3},"Web-сайт:","http://www.support.eias.ru/"]
[{"$nulls":3},"Комментарий",""]

{"sheet":"Справочная информация","index":2,"n_rows":79,"n_cols":3,"rows_kept":79,"merged":[[2,1,2,2]]}
[]
[null,{"$f":"code","v":"Код шаблона: JKH.OPEN.INFO.TARIFF.GVS"}]
[null,"Инструкция"]
[]
[]
[null,null,"III. Стандарты раскрытия информации в сфере горячего водоснабжения"]
[]
[null,null,"22. В сфере горячего водоснабжения раскрытию подлежит информация: "]
[null,null,"а) о ценах (тарифах) на регулируемые товары и услуги и надбавках к этим ценам (тарифам); "]
[null,null,"б) об основных показателях финансово-хозяйственной деятельности регулируемых организаций, включая структуру основных производственных затрат (в части регулируемой деятельности); "]
[null,null,"в) об основных потребительских характеристиках регулируемых товаров и услуг регулируемых организаций и их соответствии государственным и иным утвержденным стандартам качества; "]
[null,null,"г) об инвестиционных программах и отчетах об их реализации; "]
[null,null,"д) о наличии (отсутствии) технической возможности доступа к регулируемым товарам и услугам регулируемых организаций, а также о регистрации и ходе реализации заявок на подключение к системе горячего водоснабжения; "]
[null,null,"е) об условиях, на которых осуществляется поставка регулируемых товаров и (или) оказание регулируемых услуг; "]
[null,null,"ж) о порядке выполнения технологических, технических и других мероприятий, связанных с подключением к системе горячего водоснабжения. "]
[null,null,"23. Информация о ценах (тарифах) на регулируемые товары и услуги и надбавках к этим ценам (тарифам) содержит сведения: "]
[null,null,"а) об утвержденных тарифах на горячую воду; "]
[null,null,"б) об утвержденных надбавках к ценам (тарифам) на горячую воду для потребителей; "]
[null,null,"в) об утвержденных надбавках к тарифам регулируемых организаций на горячую воду; "]
[null,null,"г) об утвержденных тарифах на подключение создаваемых (реконструируемых) объектов недвижимости к системе горячего водоснабжения; "]
[null,null,"д) об утвержденных тарифах регулируемых организаций на подключение к системе горячего водоснабжения. "]
[null,null,"24. В отношении каждой из групп сведений, указанных в пункте 23 настоящего документа, указываются наименование регулирующего органа, принявшего решение об утверждении цен (тарифов) и надбавок к ним, реквизиты (дата и номер) такого решения, величина установленного тарифа или надбавки, срок действия тарифа или надбавки, а также источник официального опубликования решения. "]
[null,null,"25. Информация об основных показателях финансово-хозяйственной деятельности регулируемых организаций, включая структуру основных производственных затрат (в части регулируемой деятельности), содержит сведения: "]
[null,null,"а) о виде регулируемой деятельности (поставка горячей воды, оказание услуг в сфере горячего водоснабжения); "]
[null,null,"б) о выручке от регулируемой деятельности (тыс. рублей); "]
[null,null,"в) о себестоимости производимых товаров (оказываемых услуг) по регулируемому виду деятельности (тыс. рублей), включающей: "]
[null,null,"расходы на покупаемую тепловую энергию (мощность), используемую для горячего водоснабжения; "]
[null,null,"расходы на тепловую энергию, производимую с применением собственных источников и используемую для горячего водоснабжения; "]
[null,null,"расходы на покупаемую холодную воду, используемую для горячего водоснабжения; "]
[null,null,"расходы на холодную воду, получаемую с применением собственных источников водозабора (скважин) и используемую для горячего водоснабжения; "]
[null,null,"расходы на покупаемую электрическую энергию (мощность), потребляемую оборудованием, используемым в технологическом процессе, с указанием средневзвешенной стоимости 1 кВт х ч и объеме приобретения электрической энергии; "]
[null,null,"расходы на оплату труда и отчисления на социальные нужды основного производственного персонала; "]
[null,null,"расходы на амортизацию основных производственных средств и аренду имущества, используемого в технологическом процессе; "]
[null,null,"общепроизводственные (цеховые) расходы, в том числе расходы на оплату труда и отчисления на социальные нужды; "]
[null,null,"общехозяйственные (управленческие) расходы, в том числе расходы на оплату труда и отчисления на социальные нужды; "]
[null,null,"расходы на ремонт (капитальный и текущий) основных производственных средств; "]
[null,null,"расходы на услуги производственного характера, выполняемые по договорам с организациями на проведение регламентных работ в рамках технологического процесса; "]
[null,null,"г) о валовой прибыли от продажи товаров и услуг по регулируемому виду деятельности (тыс. рублей); "]
[null,null,"д) о чистой прибыли по регулируемому виду деятельности с указанием размера ее расходования на финансирование мероприятий, предусмотренных инвестиционной программой регулируемой организации по развитию системы горячего водоснабжения (тыс. рублей); "]
[null,null,"е) об изменении стоимости основных фондов, в том числе за счет ввода (вывода) их из эксплуатации (тыс. рублей); "]
[null,null,"ж) о годовой бухгалтерской отчетности, включая бухгалтерский баланс и приложения к нему (раскрывается регулируемыми организациями, выручка от регулируемой деятельности которых превышает 80 процентов совокупной выручки за отчетный год); "]
[null,null,"з) об объеме покупаемой холодной воды, используемой для горячего водоснабжения (тыс. куб. м); "]
[null,null,"и) об объеме холодной воды, получаемой с применением собственных источников водозабора (скважин) и используемой для горячего водоснабжения; "]
[null,null,"к) об объеме покупаемой тепловой энергии (мощности), используемой для горячего водоснабжения (тыс. Гкал (Гкал/ч); "]
[null,null,"л) об объеме тепловой энергии, производимой с применением собственных источников и используемой для горячего водоснабжения (тыс. Гкал); "]
[null,null,"м) об объеме отпущенной потребителям тепловой энергии (тыс. Гкал); "]
[null,null,"н) о потерях воды в сетях (процентов); "]
[null,null,"о) о протяженности водопроводных сетей (в однотрубном исчислении) (км); "]
[null,null,"п) о среднесписочной численности основного производственного персонала (человек); "]
[null,null,"р) об удельном расходе электроэнергии на подачу воды в сеть (тыс. кВт х ч или тыс. куб. м). "]
[null,null,"26. Информация об основных потребительских характеристиках регулируемых товаров и услуг регулируемых организаций и их соответствии государственным и иным утвержденным стандартам качества содержит сведения: "]
[null,null,"а) о количестве аварий на системах горячего водоснабжения (единиц на км); "]
[null,null,"б) о количестве часов (суммарно за календарный год), превышающих допустимую продолжительность перерыва подачи горячей воды, и доле потребителей, затронутых ограничениями подачи горячей воды; "]
[null,null,"в) о количестве часов (суммарно за календарный год) отклонения от нормативной температуры горячей воды в точке разбора; "]
[null,null,"г) о соответствии состава и свойств горячей воды установленным санитарным нормам и правилам. "]
[null,null,"27. Информация об инвестиционных программах и отчетах об их реализации содержит наименование соответствующей программы, а также сведения: "]
[null,null,"а) о цели инвестиционной программы; "]
[null,null,"б) о сроках начала и окончания реализации инвестиционной программы; "]
[null,null,"в) о потребностях в финансовых средствах, необходимых для реализации инвестиционной программы, в том числе с разбивкой по годам, мероприятиям и источникам финансирования инвестиционной программы (тыс. рублей); "]
[null,null,"г) о показателях эффективности реализации инвестиционной программы, а также об изменении технико-экономических показателей регулируемой организации (с разбивкой по мероприятиям); "]
[null,null,"д) об использовании инвестиционных средств за отчетный год с разбивкой по кварталам, мероприятиям и источникам финансирования инвестиционной программы (тыс. рублей). "]
[null,null,"28. В официальных печатных изданиях сведения, указанные в подпунктах \"в\" - \"д\" пункта 27 настоящего документа, публикуются в отношении мероприятий инвестиционной программы, доля расходов на реализацию каждого из которых превышает 5 процентов суммы финансирования инвестиционной программы за отчетный год. "]
[null,null,"29. Информация о наличии (отсутствии) технической возможности доступа к регулируемым товарам и услугам регулируемых организаций, а также о регистрации и ходе реализации заявок на подключение к системе горячего водоснабжения содержит сведения: "]
[null,null,"а) о количестве поданных и зарегистрированных заявок на подключение к системе горячего водоснабжения; "]
[null,null,"б) о количестве исполненных заявок на подключение к системе горячего водоснабжения; "]
[null,null,"в) о количестве заявок на подключение к системе горячего водоснабжения, по которым принято решение об отказе в подключении; "]
[null,null,"г) о резерве мощности системы горячего водоснабжения. При наличии у регулируемой организации раздельных систем горячего водоснабжения информация о резерве мощности таких систем публикуется в отношении каждой системы горячего водоснабжения. "]
[null,null,"30. Информация об условиях, на которых осуществляется поставка регулируемых товаров и (или) оказание регулируемых услуг, содержит сведения об условиях публичных договоров поставок регулируемых товаров, оказания регулируемых услуг, в том числе договоров на подключение к системе горячего водоснабжения. "]
[null,null,"31. Информация о порядке выполнения технологических, технических и других мероприятий, связанных с подключением к системе горячего водоснабжения, содержит: "]
[null,null,"а) форму заявки на подключение к системе горячего водоснабжения; "]
[null,null,"б) перечень и формы документов, представляемых одновременно с заявкой на подключение к системе горячего водоснабжения; "]
[null,null,"в) описание (со ссылкой на нормативные правовые акты) порядка действий заявителя и регулируемой организации при подаче, приеме, обработке заявки на подключение к системе горячего водоснабжения, принятии решения и уведомлении о принятом решении; "]
[null,null,"г) телефоны и адреса службы, ответственной за прием и обработку заявок на подключение к системе горячего водоснабжения. "]
[null,null,"32. Информация, указанная в пунктах 23, 30 и 31 настоящего документа, раскрывается регулируемой организацией не позднее 30 дней со дня принятия соответствующего решения об установлении тарифа (надбавки) на очередной период регулирования. "]
[null,null,"Одновременно с указанной в пункте 23 настоящего документа информацией на сайте в сети Интернет публикуются сведения о финансово-хозяйственной деятельности регулируемой организации, указанные в подпунктах \"а\" - \"д\", \"з\" - \"р\" пункта 25 и подпунктах \"а\" - \"г\" пункта 27 настоящего документа, учтенные органом исполнительной власти субъекта Российской Федерации (органом местного самоуправления) при установлении тарифов и надбавок к тарифам на очередной период регулирования. "]
[null,null,"Информация, указанная в пунктах 25-27 настоящего документа, раскрывается регулируемой организацией не позднее 30 дней со дня сдачи годового бухгалтерского баланса в налоговые органы и должна соответствовать годовой бухгалтерской отчетности за отчетный год. "]
[null,null,"Одновременно с указанной в пункте 25 настоящего документа информацией о расходах на ремонт (капитальный и текущий) основных производственных средств и расходах на услуги производственного характера, выполняемых по договорам с организациями на проведение регламентных работ в рамках технологического процесса, на сайте в сети Интернет публикуется информация об объемах товаров и услуг, их стоимости и способах приобретения у тех организаций, сумма оплаты услуг которых превышает 20 процентов суммы расходов по каждой из указанных статьей расходов. "]
[null,null,"При этом указывается информация о поставке товаров и услуг, стоимость которых превышает 20 процентов суммы поставки товаров и услуг каждой из этих организаций. "]
[null,null,"Информация, указанная в пункте 29 настоящего документа, раскрывается регулируемой организацией ежеквартально."]

{"sheet":"Лог обновления","index":3,"n_rows":10,"n_cols":4,"rows_kept":10,"hidden":true}
[]
["3/17/2012  12:12:41 AM","Дата/Время","Сообщение","Статус"]
[null,"12/29/2015  10:17:37 AM","Проверка доступных обновлений...","Информация"]
[null,"12/29/2015  10:17:38 AM","Ошибка проверки обновления","Ошибка"]
[null,"12/29/2015  10:40:02 AM","Проверка доступных обновлений...","Информация"]
[null,"12/29/2015  10:40:03 AM","Ошибка проверки обновления","Ошибка"]
[null,"12/29/2015  10:53:33 AM","Проверка доступных обновлений...","Информация"]
[null,"12/29/2015  10:53:41 AM","Версия шаблона 5.0.1 актуальна, обновление не требуется","Информация"]
[null,"12/30/2015  8:52:37 AM","Проверка доступных обновлений...","Информация"]
[null,"12/30/2015  8:52:38 AM","Версия шаблона 5.0.1 актуальна, обновление не требуется","Информация"]

{"sheet":"Выбор субъекта РФ","index":4,"n_rows":2,"n_cols":8,"rows_kept":2,"hidden":true,"merged":[[1,1,2,6]]}
[null,61,15187457,{"$nulls":3},0]
[null,"Республика Хакасия",{"$nulls":5},0]

{"sheet":"Титульный","index":5,"n_rows":65,"n_cols":7,"rows_kept":65,"merged":[[1,5,1,7],[2,5,2,7],[3,3,3,7],[6,5,6,6],[8,5,8,6],[10,5,10,6],[11,5,11,6],[12,5,12,6],[14,5,14,6],[15,5,15,6],[16,5,16,6],[18,5,18,6],[22,5,22,6],[24,5,24,6],[26,5,26,6],[27,5,27,6],[29,5,29,6],[32,5,32,6],[34,5,34,6],[36,5,36,6],[37,5,37,6],[38,5,38,6],[42,5,42,6],[44,2,46,2],[44,4,45,4],[48,5,48,6],[49,5,49,6],[50,5,50,6],[52,5,52,6],[53,5,53,6],[54,5,54,6],[56,5,56,6],[57,5,57,6],[58,5,58,6],[60,5,60,6],[61,5,61,6],[62,5,62,6],[63,5,63,6],[64,5,64,6]]}
[{"$f":"region_name","v":"Республика Хакасия"},null,{"$f":"org&\"_INN:\"&inn&\"_KPP:\"&kpp","v":"ОП ЗАО \"Байкалэнерго\" - \"Саяногорские тепловые сети\"_INN:3808108339_KPP:381201001"}]
[{"$f":"IF(org=\"\",\"Не определено\",org)","v":"ОП ЗАО \"Байкалэнерго\" - \"Саяногорские тепловые сети\""},{"$f":"IF(inn=\"\",\"Не определено\",inn)","v":"3808108339"},{"$nulls":3},{"$f":"code","v":"Код шаблона: JKH.OPEN.INFO.TARIFF.GVS"}]
[{"$nulls":5},{"$f":"version","v":"Версия 5.0.1"}]
[{"$f":"IF(fil=\"\",\"Не определено\",fil)","v":"Обособленное подразделение \"Саяногорские тепловые сети\""},{"$f":"IF(kpp=\"\",\"Не определено\",kpp)","v":"381201001"},null,{"$f":"\"Показатели, подлежащие раскрытию в сфере \"&TSphere_full&\" (План)\"","v":"Показатели, подлежащие раскрытию в сфере горячего водоснабжения (План)"}]
[]
[{"$nulls":4},"Создать печатную форму"]
[{"$nulls":4},"Субъект РФ","Республика Хакасия"]
[]
[{"$nulls":4},"Публикация","На сайте регулирующего органа"]
[]
[{"$nulls":5},"Источники публикации"]
[{"$nulls":4},{"$f":"\"Сайт\"&IF(strPublication=\"На официальном сайте организации\",\" организации \",\" \")&\"в сети Интернет\"","v":"Сайт в сети Интернет"},"a"]
[{"$nulls":4},"Печатное издание","a"]
[]
[{"$nulls":5},"Период регулирования"]
[{"$nulls":4},"Начало очередного периода регулирования","01.07.2016"]
[{"$nulls":4},"Окончание очередного периода регулирования","31.12.2016"]
[]
["L0","Признак филиала",null,null,"Является ли данное юридическое лицо подразделением (филиалом) другой организации","да"]
[]
[{"$nulls":4},"Дата последнего обновления реестра организаций: 29.12.2015 10:38:08"]
[66]
[{"$nulls":4},"Наименование организации","ОП ЗАО \"Байкалэнерго\" - \"Саяногорские тепловые сети\""]
[]
[{"$nulls":4},"Наименование ПОДРАЗДЕЛЕНИЯ","Обособленное подразделение \"Саяногорские тепловые сети\""]
[]
[{"$nulls":4},"ИНН","3808108339"]
[{"$nulls":4},"КПП","381201001"]
[]
[{"$nulls":4},"Вид деятельности","Оказание услуг в сфере горячего водоснабжения"]
[]
[]
[{"$nulls":4},"Режим налогообложения","общий"]
[]
[{"$nulls":4},"Организация выполняет инвестиционную программу","нет"]
[]
[{"$nulls":5},{"$f":"\"Система \"&IF(TSphere=\"ТС\",\"теплоснабжения\",\"коммунальной инфраструктуры\")","v":"Система коммунальной инфраструктуры"}]
[{"$nulls":4},"Условный порядковый номер","1"]
[{"$nulls":4},"Описание","г.Саяногорск, п. Майна, рп.Черемушки"]
[]
[{"$nulls":4},"Дата последнего обновления реестра МР/МО: 29.12.2015 10:18:24"]
[]
[{"$nulls":4},{"$f":"\"Муниципальный район, на территории которого \" & IF(TSphere = \"ТБО\", \"оказывает услуги данная организация\", \"размещена система \"&IF(TSphere = \"ТС\",\"теплоснабжения\",\"коммунальной инфраструктуры\"))","v":"Муниципальный район, на территории которого размещена система коммунальной инфраструктуры"},{"$f":"\"Муниципальное образование, на территории которого \" & IF(TSphere = \"ТБО\", \"оказывает услуги данная организация\", \"размещена система \"&IF(TSphere = \"ТС\",\"теплоснабжения\",\"коммунальной инфраструктуры\"))","v":"Муниципальное образование, на территории которого размещена система коммунальной инфраструктуры"}]
[{"$nulls":4},"Наименование МР","Наименование МО","ОКТМО"]
[{"$nulls":4},"город Саяногорск","город Саяногорск","95708000"]
[{"$nulls":5},"Добавить МО"]
[{"$nulls":4},"Добавить МР"]
[]
[{"$nulls":5},"Адрес организации"]
[{"$nulls":4},"Юридический адрес:","664043, Российская Федерация, Иркутская область, \nгород Иркутск, \nбульвар Рябикова, дом 67"]
[{"$nulls":4},"Почтовый адрес:","655503, РХ г.Саяногорск\nУл.Индустриальная, 19"]
[]
[{"$nulls":5},"Руководитель"]
[{"$nulls":4},"Фамилия, имя, отчество:","Алферов Михаил Алексеевич"]
[{"$nulls":4},"(код) номер телефона:","8 (39042) 6-31-84"]
[]
[{"$nulls":5},"Главный бухгалтер"]
[{"$nulls":4},"Фамилия, имя, отчество:","-"]
[{"$nulls":4},"(код) номер телефона:","-"]
[]
[{"$nulls":5},"Должностное лицо, ответственное за составление формы"]
[{"$nulls":4},"Фамилия, имя, отчество:","Зыкина Людмила Игоревна"]
[{"$nulls":4},"Должность:","экономист"]
[{"$nulls":4},"(код) номер телефона:","8 (38042) 2-84-91"]
[{"$nulls":4},"e-mail:","zikina_li@nitec.irkutskenergo.ru"]

{"sheet":"ГВС инвестиции","index":6,"n_rows":60,"n_cols":9,"rows_kept":60,"hidden":true,"merged":[[1,5,1,6],[3,4,4,4],[3,5,4,5],[15,3,15,10],[16,3,16,10],[19,5,19,6],[19,8,19,9],[20,5,20,6],[21,5,21,6],[22,5,22,6],[23,5,23,6],[24,5,24,6],[25,5,25,6],[26,5,26,6],[28,5,28,6],[29,5,29,6],[31,5,31,6],[32,4,33,4],[32,5,33,5],[34,4,35,4],[34,5,35,5],[36,4,37,4],[36,5,37,5],[38,4,39,4],[38,5,39,5],[40,4,41,4],[40,5,41,5],[42,4,43,4],[42,5,43,5],[44,4,45,4],[44,5,45,5],[46,4,47,4],[46,5,47,5],[48,4,49,4],[48,5,49,5],[50,4,51,4],[50,5,51,5],[52,4,53,4],[52,5,53,5],[54,4,55,4],[54,5,55,5]]}
[]
[]
[]
[{"$nulls":6},"План на отчетный период"]
[{"$nulls":6},"Факт на начало реализации программы**"]
{"$rows_empty":9}
[{"$nulls":3},{"$f":"code","v":"Код шаблона: JKH.OPEN.INFO.TARIFF.GVS"}]
[{"$nulls":3},"Информация об инвестиционных программах и отчетах об их реализации *"]
[{"$nulls":3},{"$f":"IF(org=\"\",\"\",IF(fil=\"\",org,org & \" (\" & fil & \")\")) & IF(OR(godStart=\"\",godEnd=\"\"),\"\",\", \"&YEAR(godStart)& \"-\" & YEAR(godEnd)&\" гг.\")","v":"ОП ЗАО \"Байкалэнерго\" - \"Саяногорские тепловые сети\" (Обособленное подразделение \"Саяногорские тепловые сети\"), 2016-2016 гг."}]
[]
[]
[null,"Мероприятие 1",null,null,"№ п/п","Наименование показателя",null,"Значение","Добавить мероприятие"]
[null,4,null,null,1,{"$f":"E21+1","v":2},null,"3"]
[{"$nulls":4},1,"Наименование инвестиционной программы (мероприятия)"]
[null,"х",null,null,2,"Цель инвестиционной программы","Цель инвестиционной программы"]
[null,"",null,null,3,"Срок начала реализации инвестиционной программы",null,""]
[null,"",null,null,4,"Срок окончания реализации инвестиционной программы",null,""]
[null,{"$f":"SUM(B27:B28)","v":{"v":0,"d":"0.00"}},null,null,"5","Потребность в финансовых средствах, необходимых для реализации инвестиционной программы за весь период реализации (тыс.руб.), в том числе по источникам финансирования:"]
[{"$nulls":4},"5.1"]
[{"$nulls":5},"Добавить источники"]
[null,{"$f":"SUM(B30:B31)","v":{"v":0,"d":"0.00"}},null,null,"6","Потребность в финансовых средствах, необходимых для реализации инвестиционной программы за отчетный период (тыс.руб.), в том числе по источникам финансирования:"]
[{"$nulls":4},"6.1"]
[{"$nulls":5},"Добавить источники"]
[null,"х",null,null,"7","Эффективность реализации инвестиционной программы (включая изменения технико-экономических показателей организации):",null,"х"]
[{"$nulls":4},"7.1","Срок окупаемости, лет","План на отчетный период"]
[{"$nulls":6},"Факт на начало реализации программы**"]
[{"$nulls":4},"7.2","Перебои в снабжении потребителей (часов на потребителя)","План на отчетный период"]
[{"$nulls":6},"Факт на начало реализации программы**"]
[{"$nulls":4},"7.3","Продолжительность (бесперебойность) поставки товаров и услуг (час/день)","План на отчетный период"]
[{"$nulls":6},"Факт на начало реализации программы**"]
[{"$nulls":4},"7.4","Уровень потерь и неучтенного потребления (%)","План на отчетный период"]
[{"$nulls":6},"Факт на начало реализации программы**"]
[{"$nulls":4},"7.5","Обеспеченность потребления товаров и услуг приборами учета (%)","План на отчетный период"]
[{"$nulls":6},"Факт на начало реализации программы**"]
[{"$nulls":4},"7.6","Численность населения, пользующегося услугами данной организации, чел.","План на отчетный период"]
[{"$nulls":6},"Факт на начало реализации программы**"]
[{"$nulls":4},"7.7","Удельное водопотребление, куб.м/чел","План на отчетный период"]
[{"$nulls":6},"Факт на начало реализации программы**"]
[{"$nulls":4},"7.8","Расход топлива на 1 куб. м, т.у.т./куб.м","План на отчетный период"]
[{"$nulls":6},"Факт на начало реализации программы**"]
[{"$nulls":4},"7.9","Расход электороэнергии на поставку 1 куб.м. горячей воды, кВт∙ч/куб.м.","План на отчетный период"]
[{"$nulls":6},"Факт на начало реализации программы**"]
[{"$nulls":4},"7.10","Расход тепловой энергии на 1 куб.м., Гкал/куб.м.","План на отчетный период"]
[{"$nulls":6},"Факт на начало реализации программы**"]
[{"$nulls":4},"7.11","Количество аварий на 1 км сетей горячего водоснабжения, ед.","План на отчетный период"]
[{"$nulls":6},"Факт на начало реализации программы**"]
[{"$nulls":4},"7.12","Производительность труда, куб.м/чел.","План на отчетный период"]
[{"$nulls":6},"Факт на начало реализации программы**"]
[{"$nulls":5},"Добавить показатель"]
[null,"Удалить мероприятие"]
[{"$nulls":4},"*","Раскрывается не позднее 30 дней со дня принятия соответствующего решения об установлении тарифа(надбавки) на очередной период регулирования."]
[{"$nulls":4},"**","На последнюю дату отчетного периода, предшествующего периоду начала реализации инвестиционной программы."]

{"sheet":"ГВС показатели","index":7,"n_rows":68,"n_cols":8,"rows_kept":68,"merged":[[6,4,6,7],[7,4,7,7],[67,5,67,7]]}
[]
[]
[]
[]
[]
[{"$nulls":3},{"$f":"code","v":"Код шаблона: JKH.OPEN.INFO.TARIFF.GVS"}]
[{"$nulls":4},"Информация об основных показателях финансово-хозяйственной деятельности регулируемых организаций, включая структуру основных производственных затрат\n(в части регулируемой деятельности) *"]
[{"$nulls":4},{"$f":"IF(org=\"\",\"\",IF(fil=\"\",org,org & \" (\" & fil & \")\")) & IF(OR(godStart=\"\",godEnd=\"\"),\"\",\", \"&YEAR(godStart)& \"-\" & YEAR(godEnd)&\" гг.\")","v":"ОП ЗАО \"Байкалэнерго\" - \"Саяногорские тепловые сети\" (Обособленное подразделение \"Саяногорские тепловые сети\"), 2016-2016 гг."}]
[]
[]
[{"$nulls":4},"№ п/п","Наименование показателя","Единица измерения","Значение"]
[{"$nulls":4},"1","2","3","4"]
[{"$nulls":4},"1","Вид регулируемой деятельности","x",{"$f":"IF(activity = \"\",\"\",activity)","v":"Оказание услуг в сфере горячего водоснабжения"}]
[{"$nulls":4},"2","Выручка от регулируемой деятельности","тыс.руб.",{"$f":"[1]РСБУ!$J$51","v":{"v":18323.15554103424,"d":"18,323.16"}}]
[{"$nulls":4},"3","Себестоимость производимых товаров (оказываемых услуг) по регулируемому виду деятельности, в том числе:","тыс.руб.",{"$f":"SUM(H16:H18)+SUM(H22:H23)+SUM(H26:H30)+H33+H36+SUM(H44:H46)","v":{"v":18288.95554103424,"d":"18,288.96"}}]
[{"$nulls":4},"3.1","Расходы на покупаемую тепловую энергию (мощность), используемую для горячего водоснабжения","тыс.руб.",{"v":0,"d":"0.00"}]
[{"$nulls":4},"3.2","Расходы на тепловую энергию, производимую с применением собственных источников и используемую для горячего водоснабжения","тыс.руб.",{"v":0,"d":"0.00"}]
[{"$nulls":4},"3.3","Расходы на покупаемую холодную воду, используемую для горячего водоснабжения, в том числе:","тыс.руб.",{"$f":"SUM(H19:H21)","v":{"v":14759.14,"d":"14,759.14"}}]
[{"$nulls":4},"3.3.1","технического качества","тыс.руб.",{"v":0,"d":"0.00"}]
[{"$nulls":4},"3.3.2","питьевого качества","тыс.руб.",{"$f":"[1]РСБУ!$K$68","v":{"v":14759.14,"d":"14,759.14"}}]
[{"$nulls":4},"3.3.3","покупка потерь","тыс.руб.",{"v":0,"d":"0.00"}]
[{"$nulls":4},"3.4","Расходы на холодную воду, получаемую с применением собственных источников водозабора (скважин) и используемую для горячего водоснабжения","тыс.руб.",{"v":0,"d":"0.00"}]
[{"$nulls":4},"3.5","Расходы на покупаемую электрическую энергию (мощность), потребляемую оборудованием, используемым в технологическом процессе:","тыс.руб.",{"v":0,"d":"0.00"}]
[{"$nulls":4},"3.5.1","средневзвешенная стоимость 1 кВт*ч","руб.",{"v":0,"d":"0.00"}]
[{"$nulls":4},"3.5.2","объем приобретенной электрической энергии","тыс.кВт*ч",{"v":0,"d":"0.0000"}]
[{"$nulls":4},"3.6","Расходы на оплату труда основного производственного персонала","тыс.руб.",{"$f":"[1]РСБУ!$K$123","v":{"v":1040.6652996115488,"d":"1,040.67"}}]
[{"$nulls":4},"3.7","Отчисления на социальные нужды основного производственного персонала","тыс.руб.",{"$f":"[1]РСБУ!$K$129","v":{"v":314.28092048268775,"d":"314.28"}}]
[{"$nulls":4},"3.8","Расходы на амортизацию основных производственных средств","тыс.руб.",{"$f":"[1]РСБУ!$K$135","v":{"v":0,"d":"0.00"}}]
[{"$nulls":4},"3.9","Расходы на аренду имущества, используемого в технологическом процессе","тыс.руб.",{"$f":"[1]РСБУ!$J$147","v":{"v":0,"d":"0.00"}}]
[{"$nulls":4},"3.10","Общепроизводственные (цеховые) расходы","тыс.руб.",{"$f":"[1]РСБУ!$N$64","v":{"v":496.062,"d":"496.06"}}]
[{"$nulls":4},"3.10.1","расходы на оплату труда","тыс.руб.",{"$f":"[1]РСБУ!$N$123","v":{"v":381,"d":"381.00"}}]
[{"$nulls":4},"3.10.2","отчисления на социальные нужды","тыс.руб.",{"$f":"[1]РСБУ!$N$129","v":{"v":115.062,"d":"115.06"}}]
[{"$nulls":4},"3.11","Общехозяйственные (управленческие) расходы","тыс.руб.",{"$f":"[1]РСБУ!$L$64","v":{"v":959.1573209399999,"d":"959.16"}}]
[{"$nulls":4},"3.11.1","расходы на оплату труда","тыс.руб.",{"$f":"[1]РСБУ!$L$123","v":{"v":736.6799699999999,"d":"736.68"}}]
[{"$nulls":4},"3.11.2","отчисления на социальные нужды","тыс.руб.",{"$f":"[1]РСБУ!$L$129","v":{"v":222.47735093999998,"d":"222.48"}}]
[{"$nulls":4},"3.12","Расходы на ремонт (капитальный и текущий) основных производственных средств, в том числе:","тыс.руб.",{"$f":"[1]РСБУ!$J$84+[1]РСБУ!$J$99","v":{"v":0,"d":"0.00"}}]
[{"$nulls":4},"3.12.1","Справочно: расходы на капитальный ремонт основных производственных средств","тыс.руб.",{"v":0,"d":"0.00"}]
[{"$nulls":4},"3.12.2","Справочно: расходы на текущий ремонт основных производственных средств","тыс.руб.",{"v":0,"d":"0.00"}]
[{"$nulls":4},"3.13","Расходы на техническое обслуживание основных производственных средств, в том числе:","тыс.руб.",{"v":0,"d":"0.00"}]
[{"$nulls":4},"3.13.1","заработная плата ремонтного персонала","тыс.руб.",{"v":0,"d":"0.00"}]
[{"$nulls":4},"3.13.2","среднемесячная оплата труда рабочего 1 разряда (в случае отсутствия тарифной сетки - средняя оплата труда рабочих)","руб.",{"v":0,"d":"0.00"}]
[{"$nulls":4},"3.13.3","численность ремонтного персонала на конец отчетного периода","чел.",0]
[{"$nulls":4},"3.13.4","отчисления на соц. нужды от заработной платы ремонтного персонала","тыс.руб.",{"v":0,"d":"0.00"}]
[{"$nulls":4},"3.14","Расходы на услуги производственного характера, выполняемые по договорам с организациями на проведение регламентных работ в рамках технологического процесса","тыс.руб.",{"v":0,"d":"0.00"}]
[{"$nulls":3},"ы","3.15","Химические реагенты, фильтрующие и ионообменные материалы","тыс.руб.",{"$f":"[1]РСБУ!$K$70","v":719.65}]
[{"$nulls":5},"Добавить запись"]
[{"$nulls":4},"4","Валовая прибыль от продажи товаров и услуг по регулируемому виду деятельности (горячее водоснабжение)","тыс.руб.",{"v":12,"d":"12.00"}]
[{"$nulls":4},"5","Чистая прибыль по регулируемому виду деятельности, в том числе: ","тыс.руб.",{"v":0,"d":"0.00"}]
[{"$nulls":4},"5.1","чистая прибыль на финансирование мероприятий, предусмотренных инвестиционной программой по развитию системы горячего водоснабжения","тыс.руб.",{"v":0,"d":"0.00"}]
[{"$nulls":4},"6","Объем покупаемой холодной воды, используемой для горячего водоснабжения, в том числе:","тыс.куб.м",{"$f":"SUM(H51:H52)","v":{"v":1036.341,"d":"1,036.34"}}]
[{"$nulls":4},"6.1","технического качества","тыс.куб.м",{"v":0,"d":"0.00"}]
[{"$nulls":4},"6.2","питьевого качества","тыс.куб.м",{"$f":"[1]РСБУ!$K$13","v":{"v":1036.341,"d":"1,036.34"}}]
[{"$nulls":4},"7","Объем холодной воды, получаемой с применением собственных источников водозабора (скважин) и используемой для горячего водоснабжения","тыс.куб.м",{"v":0,"d":"0.00"}]
[{"$nulls":4},"8","Объем покупаемой тепловой энергии (мощности), используемой для горячего водоснабжения","тыс. Гкал",{"v":0,"d":"0.0000"}]
[{"$nulls":4},"9","Объем тепловой энергии, производимой с применением собственных источников и используемой для горячего водоснабжения","тыс. Гкал",{"v":0,"d":"0.0000"}]
[{"$nulls":4},"10","Объем отпущенной потребителям тепловой энергии (по ГВС), в том числе:","тыс. Гкал",{"$f":"SUM(H57:H58)","v":{"v":0,"d":"0.00"}}]
[{"$nulls":4},"10.1","по приборам учета","тыс. Гкал",{"v":0,"d":"0.0000"}]
[{"$nulls":4},"10.2","по нормативам потребления (расчетным методом)","тыс. Гкал",{"v":0,"d":"0.0000"}]
[{"$nulls":4},"11","Объем отпущенной потребителям горячей воды, в том числе:","тыс.куб.м",{"$f":"H60","v":{"v":1188.1812,"d":"1,188.18"}}]
[{"$nulls":4},"11.1","по приборам учета","тыс.куб.м",{"$f":"[1]РСБУ!$J$15","v":{"v":1188.1812,"d":"1,188.18"}}]
[{"$nulls":4},"11.2","по нормативам потребления (расчетным методом)","тыс.куб.м",{"v":0,"d":"0.00"}]
[{"$nulls":4},"12","Потери воды в сетях ГВС","%",{"v":8,"d":"8.00"}]
[{"$nulls":4},"13","Коэффициент потерь тепла трубопроводами систем централизованного ГВС","гКал/час",{"v":6.74,"d":"6.7400"}]
[{"$nulls":4},"14","Протяженность водопроводных сетей (в однотрубном исчислении)","км",144.38]
[{"$nulls":4},"15","Среднесписочная численность основного производственного персонала","чел.",3]
[{"$nulls":4},"16","Удельный расход электроэнергии на подачу воды в сеть(учитывать электроэнергию всех насосных и подкачивающих станций)","кВт*ч/.куб.м",{"v":0,"d":"0.00"}]
[{"$nulls":4},"17","Комментарии",null,"-"]
[{"$nulls":4},"*","Раскрывается не позднее 30 дней со дня принятия соответствующего решения об установлении тарифа(надбавки) на очередной период регулирования."]

{"sheet":"ГВС показатели (2)","index":8,"n_rows":28,"n_cols":13,"rows_kept":28,"merged":[[5,3,5,5],[6,4,6,12],[7,3,7,13],[13,5,13,10],[14,5,14,10],[15,4,18,4],[15,5,18,5],[16,6,17,6],[16,7,17,7],[20,5,20,10],[21,5,21,10],[22,4,25,4],[22,5,25,5],[23,6,24,6],[23,7,24,7]]}
[]
[]
[]
[]
[]
[{"$nulls":3},{"$f":"code","v":"Код шаблона: JKH.OPEN.INFO.TARIFF.GVS"}]
[{"$nulls":4},"Информация об объемах товаров и услуг, их стоимости и способах приобретения *"]
[{"$nulls":3},{"$f":"IF(org=\"\",\"\",IF(fil=\"\",org,org & \" (\" & fil & \")\")) & IF(OR(godStart=\"\",godEnd=\"\"),\"\",\", \"&YEAR(godStart)& \"-\" & YEAR(godEnd)&\" гг.\")","v":"ОП ЗАО \"Байкалэнерго\" - \"Саяногорские тепловые сети\" (Обособленное подразделение \"Саяногорские тепловые сети\"), 2016-2016 гг."}]
[]
[]
[]
[{"$nulls":4},"№ п/п","Наименование поставщика","Способ приобретения","Реквизиты договора","Наименование товара/услуги","Объем приобретенных товаров, услуг","Единица измерения объема","Стоимость, тыс.руб.","Доля расходов, % (от суммы расходов по указанной статье)"]
[{"$nulls":4},1,2,3,4,5,6,7,8,9]
[{"$nulls":4},1,"Расходы на ремонт (текущий и капитальный) основных производственных средств итого. Из них:",{"$nulls":5},{"$f":"costs_OPS_4","v":{"v":0,"d":"0.00"}}]
[{"$nulls":4},"1.1","Товары и услуги, приобретенные у организаций, сумма оплаты услуг которых превышает 20% суммы расходов по статье"]
[{"$nulls":4},"1.1.1","-","Итого по поставщику",{"$nulls":4},{"$f":"SUM(L17:L19)","v":{"v":0,"d":"0.00"}},{"$f":"nerr(L16/costs_OPS_4)*100","v":{"v":0,"d":"0.00"}}]
[{"$nulls":6},"торги/аукционы","-","-",{"v":0,"d":"0.00"},"-",{"v":0,"d":"0.00"}]
[{"$nulls":8},"Добавить запись"]
[{"$nulls":6},"Добавить способ"]
[{"$nulls":5},"Добавить поставщика"]
[{"$nulls":4},2,"Расходы на услуги производственного характера, выполняемые по договорам с организациями на проведение регламентных работ в рамках технологического процесса. Из них:",{"$nulls":5},{"$f":"costs_PH_4","v":{"v":0,"d":"0.00"}}]
[{"$nulls":4},"2.1","Товары и услуги, приобретенные у организаций, сумма оплаты услуг которых превышает 20% суммы расходов по статье"]
[{"$nulls":4},"2.1.1","-","Итого по поставщику",{"$nulls":4},{"$f":"SUM(L24:L26)","v":{"v":0,"d":"0.00"}},{"$f":"nerr(L23/costs_PH_4)*100","v":{"v":0,"d":"0.00"}}]
[{"$nulls":6},"торги/аукционы","-","-",{"v":0,"d":"0.00"},"-",{"v":0,"d":"0.00"}]
[{"$nulls":8},"Добавить запись"]
[{"$nulls":6},"Добавить способ"]
[{"$nulls":5},"Добавить поставщика"]
[{"$nulls":4},"*","Раскрывается не позднее 30 дней со дня принятия соответствующего решения об установлении тарифа(надбавки) на очередной период регулирования."]

{"sheet":"Ссылки на публикации","index":9,"n_rows":48,"n_cols":12,"rows_kept":48,"merged":[[5,3,5,5],[6,3,6,12],[7,3,7,12],[10,4,10,10],[42,6,42,11],[43,6,43,11],[44,6,44,11],[45,6,45,11]]}
[]
[]
[]
[]
[]
[{"$nulls":3},{"$f":"code","v":"Код шаблона: JKH.OPEN.INFO.TARIFF.GVS"}]
[{"$nulls":3},{"$f":"\"Ссылки на публикации \"&IF(strPublication=\"На официальном сайте организации\",\"на официальном сайте организации\",\"в других источниках\")","v":"Ссылки на публикации в других источниках"}]
[{"$nulls":3},{"$f":"IF(org=\"\",\"\",IF(fil=\"\",org,org & \" (\" & fil & \")\")) & IF(OR(godStart=\"\",godEnd=\"\"),\"\",\", \"&YEAR(godStart)& \"-\" & YEAR(godEnd)&\" гг.\")","v":"ОП ЗАО \"Байкалэнерго\" - \"Саяногорские тепловые сети\" (Обособленное подразделение \"Саяногорские тепловые сети\"), 2016-2016 гг."}]
[]
[]
[{"$nulls":4},{"$f":"\"Указание на официальное печатное издание и (или) адрес сайта\"&IF(strPublication=\"На официальном сайте организации\",\" организации \",\" \")&\"в сети Интернет, которые используются для размещения раскрываемой информации *\"","v":"Указание на официальное печатное издание и (или) адрес сайта в сети Интернет, которые используются для размещения раскрываемой информации *"}]
[{"$nulls":7},"True"]
[{"$nulls":4},"№ п/п","Содержание","Наименование источника",null,"Дата размещения информации","Номер печатного издания","Дата печатного издания",{"$f":"IF(strPublication=\"На официальном сайте организации\",\"Адрес страницы официального сайта организации в сети интернет, на которой размещена раскрываемая информация\",\"Адрес сайта в сети Интернет\")","v":"Адрес сайта в сети Интернет"}]
[{"$nulls":4},1,{"$f":"E14+1","v":2},3,3,{"$f":"H14+1","v":4},{"$f":"I14+1","v":5},{"$f":"J14+1","v":6},{"$f":"K14+1","v":7}]
[]
[]
[]
[{"$nulls":4},"1.2","Информация об основных показателях финансово-хозяйственной деятельности регулируемых организаций, включая структуру основных производственных затрат (в части регулируемой деятельности)"]
[{"$nulls":4},"1.2.1",{"$f":"\"Сайт\"&IF(strPublication=\"На официальном сайте организации\",\" организации \",\" \")&\"в сети Интернет\"","v":"Сайт в сети Интернет"},"официальный сайт Госкомтарифэнерго Хакасии",null,"29.12.2015","x","x","http://www.r-19.ru/authorities/state-committee-on-tariffs-and-energy-of-the-republic-of-khakassia/common/"]
[{"$nulls":4},"1.2.2","Печатное издание","газета \"Саянские ведомости\"",null,"29.12.2015","53 (976)","31.12.2015","x"]
[{"$nulls":4},"1.3","Информация о расходах на капитальный и текущий ремонт, услуги производственного характера"]
[{"$nulls":4},"1.3.1",{"$f":"\"Сайт\"&IF(strPublication=\"На официальном сайте организации\",\" организации \",\" \")&\"в сети Интернет\"","v":"Сайт в сети Интернет"},"официальный сайт Госкомтарифэнерго Хакасии",null,"29.12.2015","x","x","http://www.r-19.ru/authorities/state-committee-on-tariffs-and-energy-of-the-republic-of-khakassia/common/"]
[{"$nulls":4},"1.3.2","Печатное издание","газета \"Саянские ведомости\"",null,"29.12.2015","53 (976)","31.12.2015","x"]
[{"$nulls":4},"1.4",{"$f":"\"Условия публичных договоров  поставок регулируемых товаров, оказания регулируемых услуг, в том числе договоров на подключение к системе \"&TSphere_full","v":"Условия публичных договоров  поставок регулируемых товаров, оказания регулируемых услуг, в том числе договоров на подключение к системе горячего водоснабжения"}]
[{"$nulls":4},"1.4.1",{"$f":"\"Сайт\"&IF(strPublication=\"На официальном сайте организации\",\" организации \",\" \")&\"в сети Интернет\"","v":"Сайт в сети Интернет"},"официальный сайт Госкомтарифэнерго Хакасии",null,"29.12.2015","x","x","http://www.r-19.ru/authorities/state-committee-on-tariffs-and-energy-of-the-republic-of-khakassia/common/"]
[{"$nulls":4},"1.4.2","Печатное издание","газета \"Саянские ведомости\"",null,"29.12.2015","53 (976)","31.12.2015","x"]
[{"$nulls":4},"1.5",{"$f":"\"Форма заявки на подключение к системе \"&TSphere_full","v":"Форма заявки на подключение к системе горячего водоснабжения"}]
[{"$nulls":4},"1.5.1",{"$f":"\"Сайт\"&IF(strPublication=\"На официальном сайте организации\",\" организации \",\" \")&\"в сети Интернет\"","v":"Сайт в сети Интернет"},"официальный сайт Госкомтарифэнерго Хакасии",null,"29.12.2015","x","x","http://www.r-19.ru/authorities/state-committee-on-tariffs-and-energy-of-the-republic-of-khakassia/common/"]
[{"$nulls":4},"1.5.2","Печатное издание","газета \"Саянские ведомости\"",null,"29.12.2015","53 (976)","31.12.2015","x"]
[{"$nulls":4},"1.6",{"$f":"\"Перечень и формы документов, представляемых одновременно с заявкой на подключение к системе \"&TSphere_full","v":"Перечень и формы документов, представляемых одновременно с заявкой на подключение к системе горячего водоснабжения"}]
[{"$nulls":4},"1.6.1",{"$f":"\"Сайт\"&IF(strPublication=\"На официальном сайте организации\",\" организации \",\" \")&\"в сети Интернет\"","v":"Сайт в сети Интернет"},"официальный сайт Госкомтарифэнерго Хакасии",null,"29.12.2015","x","x","http://www.r-19.ru/authorities/state-committee-on-tariffs-and-energy-of-the-republic-of-khakassia/common/"]
[{"$nulls":4},"1.6.2","Печатное издание","газета \"Саянские ведомости\"",null,"29.12.2015","53 (976)","31.12.2015","x"]
[{"$nulls":4},"1.7","Описание (со ссылкой на нормативные акты) порядка действий  заявителя  и регулируемой организации при  подаче, приеме, обработке заявки на подключение к системе"]
[{"$nulls":5},{"$f":"TSphere_full&\", принятии решения и уведомлении о принятом решении\"","v":"горячего водоснабжения, принятии решения и уведомлении о принятом решении"}]
[{"$nulls":4},"1.7.1",{"$f":"\"Сайт\"&IF(strPublication=\"На официальном сайте организации\",\" организации \",\" \")&\"в сети Интернет\"","v":"Сайт в сети Интернет"},"официальный сайт Госкомтарифэнерго Хакасии",null,"29.12.2015","x","x","http://www.r-19.ru/authorities/state-committee-on-tariffs-and-energy-of-the-republic-of-khakassia/common/"]
[{"$nulls":4},"1.7.2","Печатное издание","газета \"Саянские ведомости\"",null,"29.12.2015","53 (976)","31.12.2015","x"]
[{"$nulls":4},"1.8",{"$f":"\"Наименование и контакты службы, ответственной за прием и обработку заявок на подключение к системе \"&TSphere_full","v":"Наименование и контакты службы, ответственной за прием и обработку заявок на подключение к системе горячего водоснабжения"}]
[{"$nulls":4},"1.8.1",{"$f":"\"Сайт\"&IF(strPublication=\"На официальном сайте организации\",\" организации \",\" \")&\"в сети Интернет\"","v":"Сайт в сети Интернет"},"официальный сайт Госкомтарифэнерго Хакасии",null,"29.12.2015","x","x","http://www.r-19.ru/authorities/state-committee-on-tariffs-and-energy-of-the-republic-of-khakassia/common/"]
[{"$nulls":4},"1.8.2","Печатное издание","газета \"Саянские ведомости\"",null,"29.12.2015","53 (976)","31.12.2015","x"]
[{"$nulls":4},"1.8"]
[{"$nulls":5},"Добавить запись"]
[{"$nulls":4},"2",{"$f":"\"Справочно: Контакты службы, ответственной за прием и обработку заявок на подключение к системе  \"&TSphere_full","v":"Справочно: Контакты службы, ответственной за прием и обработку заявок на подключение к системе  горячего водоснабжения"}]
[{"$nulls":4},"2.1","Адрес","г. Саяногорск, ул. Индустриальная, д.19"]
[{"$nulls":4},"2.2","(код) Номер телефона","8 (39042) 2-84-68"]
[{"$nulls":4},"2.3","E-mail","-"]
[{"$nulls":4},"2.4","Сайт в сети Интернет","-"]
[{"$nulls":4},"*","Источники публикации сообщаются в течение 5 рабочих дней со дня размещения информации на сайте в сети Интернет."]
[{"$nulls":5},"Информация раскрывается не позднее 30 дней со дня принятия соответствующего решения об установлении тарифа(надбавки) на очередной период регулирования."]

{"sheet":"Комментарии","index":10,"n_rows":13,"n_cols":6,"rows_kept":13,"merged":[[6,3,6,5],[7,3,7,5]]}
[]
[]
[]
[]
[]
[{"$nulls":3},{"$f":"code","v":"Код шаблона: JKH.OPEN.INFO.TARIFF.GVS"}]
[{"$nulls":3},"КОММЕНТАРИИ"]
[{"$nulls":3},{"$f":"IF(org=\"\",\"\",IF(fil=\"\",org,org & \" (\" & fil & \")\")) & IF(OR(godStart=\"\",godEnd=\"\"),\"\",\", \"&YEAR(godStart)& \"-\" & YEAR(godEnd)&\" гг.\")","v":"ОП ЗАО \"Байкалэнерго\" - \"Саяногорские тепловые сети\" (Обособленное подразделение \"Саяногорские тепловые сети\"), 2016-2016 гг."}]
[]
[{"$nulls":4},"№ п/п","Комментарий"]
[{"$nulls":4},1,{"$f":"E11+1","v":2}]
[{"$nulls":4},1]
[{"$nulls":5},"Добавить комментарий"]

{"sheet":"Проверка","index":11,"n_rows":10,"n_cols":8,"rows_kept":10,"merged":[[7,4,7,7]]}
{"$rows_empty":7}
[{"$nulls":4},"Результаты проверки"]
[]
[{"$nulls":4},"Ссылка 1","Ссылка 2","Описание причины","Обязательность выполнения"]

{"sheet":"TEHSHEET","index":12,"n_rows":85,"n_cols":96,"rows_kept":85,"hidden":true,"merged":[[0,17,0,18]]}
["Логика","Кварталы","Года","Единица измерения","Месяц-текст","Месяц-число","Номер СКИ\n/SKI_number/","День-число","Регионы","Вид деятельности","Источники финансирования","Единица измерения","Вид тарифа на передачу тепловой энергии /kind_of_tariff_unit/","НДС /kind_of_NDS/","цель инвестиционной программы /objective_of_IPR/","цель инвестиционной программы /kind_of_purchase_method/","наименование источника\n/kind_of_name_source/","Виды топлива\n/kind_of_fuels/",null,"регионы-исключения\n/region_exception/",null,"версия шаблона\n (DocProp_Version)","5.0.1",{"$nulls":72},"5.86"]
["да","I квартал",2006,"тыс.руб.","январь","01","1","01","Алтайский край","Оказание услуг в сфере водоотведения и очистки сточных вод","кредиты банков","тыс.куб м/сутки","руб./Гкал/ч/мес","общий","автоматизация (с уменьшением штата)","торги/аукционы","наименование источника","газ природный по регулируемой цене","тыс. м3","Краснодарский край",null,"код шаблона\n(DocProp_TemplateCode)","JKH.OPEN.INFO.TARIFF.GVS"]
["нет","II квартал",2007,"млн.руб.","февраль","02","2","02","Амурская область","Оказание услуг по перекачке","кредиты иностранных банков","Гкал/час","руб./Гкал","общий с учетом освобождения от уплаты НДС","уменьшение удельных затрат (повышение КПД)","прямые договора без торгов","не раскрывалась","газ природный по нерегулируемой цене","тыс. м3","Кировская область",null,"сфера\n(TSphere)","ГВС"]
[null,"III квартал",2008,null,"март","03","3","03","Архангельская область","Оказание услуг в сфере водоснабжения, водоотведения и очистки сточных вод","заемные ср-ва др. организаций","куб.м/час",null,"специальный (упрощенная система налогообложения, система налогообложения для сельскохозяйственных товаропроизводителей)","уменьшение издержек на производство","прочее",null,"газ сжиженный","кг","Республика Башкортостан",null,"сфера(латиница)\n(TSphere_trans)","GVS"]
[null,"IV квартал",2009,null,"апрель","04","4","04","Астраханская область",null,"федеральный бюджет",{"$nulls":3},"снижение аварийности",null,null,"газовый конденсат","тонны","г.Санкт-Петербург",null,"сфера расширено\n(TSphere_full)","горячего водоснабжения"]
[null,null,2010,null,"май","05","5","05","Белгородская область","Вид деятельности, на которую установлен тариф /kind_of_activity_WARM/","бюджет субъекта РФ",{"$nulls":3},"прочее",null,null,"гшз","тонны","Чувашская республика",null,"признак общего шаблона\n(flag_main_template)","False"]
[null,null,2011,null,"июнь","06","6","06","Брянская область","Комбинированная выработка","бюджет муниципального образования",{"$nulls":6},"мазут","тонны","Пермский край"]
[null,null,2012,null,"июль","07","7","07","Владимирская область","Некомбинированная выработка","ср-ва внебюджетных фондов",{"$nulls":6},"нефть","тонны","Республика Татарстан"]
[null,null,2013,null,"август","08","8","08","Волгоградская область","Нет производства т/э","прибыль, направляемая на инвестиции",{"$nulls":6},"дизельное топливо","тонны","Иркутская область"]
[null,null,2014,null,"сентябрь","09","9","09","Вологодская область","Смешанное производство","амортизация",{"$nulls":6},"уголь бурый","тонны","Алтайский край"]
[null,null,2015,null,"октябрь",10,"10",10,"Воронежская область","Вид деятельности, на которую установлен тариф /kind_of_activity_HVS/","инвестиционная надбавка к тарифу",{"$nulls":6},"уголь каменный","тонны"]
[{"$nulls":4},"ноябрь",11,"11",11,"г.Байконур","Водоснабжение (подъем, очистка, транспортировка)","плата за подключение",{"$nulls":6},"торф","тонны"]
[{"$nulls":4},"декабрь",12,"12",12,"г. Москва","Подъем","прочие средства",{"$nulls":6},"дрова","м3"]
[{"$nulls":6},"13",13,"г.Санкт-Петербург","Транспортировка",{"$nulls":7},"опил","м3"]
[{"$nulls":6},"14",14,"Еврейская автономная область","Вид деятельности, на которую установлен тариф /kind_of_activity_VO/",{"$nulls":7},"отходы березовые","м3"]
[{"$nulls":6},"15",15,"Забайкальский край","Транспортировка и очистка сточных вод","XML_ORG_LIST_TAG_NAMES",{"$nulls":6},"отходы осиновые","м3"]
[{"$nulls":6},"16",16,"Ивановская область","Транспортировка сточных вод","NSRF",{"$nulls":6},"печное топливо","тонны"]
[{"$nulls":6},"17",17,"Иркутская область","Очистка сточных вод","MR_NAME",{"$nulls":6},"пилеты","тонны"]
[{"$nulls":6},"18",18,"Кабардино-Балкарская республика",null,"OKTMO_MR_NAME",{"$nulls":6},"смола","тонны"]
[{"$nulls":6},"19",19,"Калининградская область",null,"MO_NAME",{"$nulls":6},"щепа","м3"]
[{"$nulls":6},"20",20,"Калужская область",null,"OKTMO_NAME",{"$nulls":6},"горючий сланец","тонны"]
[{"$nulls":7},21,"Камчатский край",null,"ORG_NAME",{"$nulls":6},"керосин","тонны"]
[{"$nulls":7},22,"Карачаево-Черкесская республика",null,"INN_NAME",{"$nulls":6},"кислородно-водородная смесь","тыс. м3"]
[{"$nulls":7},23,"Кемеровская область",null,"KPP_NAME",{"$nulls":6},"электроэнергия (НН)","тыс.кВт ч"]
[{"$nulls":7},24,"Кировская область",null,"VDET_NAME",{"$nulls":6},"электроэнергия (СН1)","тыс.кВт ч"]
[{"$nulls":7},25,"Костромская область",{"$nulls":8},"электроэнергия (СН2)","тыс.кВт ч"]
[{"$nulls":7},26,"Краснодарский край",null,"XML_MR_MO_OKTMO_LIST_TAG_NAMES",{"$nulls":6},"электроэнергия (ВН)","тыс.кВт ч"]
[{"$nulls":7},27,"Красноярский край",null,"NSRF",{"$nulls":6},"мощность","тыс.кВт"]
[{"$nulls":7},28,"Курганская область",null,"MR_NAME",{"$nulls":6},"прочее"]
[{"$nulls":7},29,"Курская область",null,"OKTMO_MR_NAME"]
[{"$nulls":7},30,"Ленинградская область",null,"MO_NAME"]
[{"$nulls":7},31,"Липецкая область",null,"OKTMO_NAME"]
[{"$nulls":8},"Магаданская область"]
[{"$nulls":8},"Московская область"]
[{"$nulls":8},"Мурманская область"]
[{"$nulls":8},"Ненецкий автономный округ"]
[{"$nulls":8},"Нижегородская область"]
[{"$nulls":8},"Новгородская область"]
[{"$nulls":8},"Новосибирская область"]
[{"$nulls":8},"Омская область"]
[{"$nulls":8},"Оренбургская область"]
[{"$nulls":8},"Орловская область"]
[{"$nulls":8},"Пензенская область"]
[{"$nulls":8},"Пермский край"]
[{"$nulls":8},"Приморский край"]
[{"$nulls":8},"Псковская область"]
[{"$nulls":8},"Республика Адыгея"]
[{"$nulls":8},"Республика Алтай"]
[{"$nulls":8},"Республика Башкортостан"]
[{"$nulls":8},"Республика Бурятия"]
[{"$nulls":8},"Республика Дагестан"]
[{"$nulls":8},"Республика Ингушетия"]
[{"$nulls":8},"Республика Калмыкия"]
[{"$nulls":8},"Республика Карелия"]
[{"$nulls":8},"Республика Коми"]
[{"$nulls":8},"Республика Марий Эл"]
[{"$nulls":8},"Республика Мордовия"]
[{"$nulls":8},"Республика Саха (Якутия)"]
[{"$nulls":8},"Республика Северная Осетия-Алания"]
[{"$nulls":8},"Республика Татарстан"]
[{"$nulls":8},"Республика Тыва"]
[{"$nulls":8},"Республика Хакасия"]
[{"$nulls":8},"Ростовская область"]
[{"$nulls":8},"Рязанская область"]
[{"$nulls":8},"Самарская область"]
[{"$nulls":8},"Саратовская область"]
[{"$nulls":8},"Сахалинская область"]
[{"$nulls":8},"Свердловская область"]
[{"$nulls":8},"Смоленская область"]
[{"$nulls":8},"Ставропольский край"]
[{"$nulls":8},"Тамбовская область"]
[{"$nulls":8},"Тверская область"]
[{"$nulls":8},"Томская область"]
[{"$nulls":8},"Тульская область"]
[{"$nulls":8},"Тюменская область"]
[{"$nulls":8},"Удмуртская республика"]
[{"$nulls":8},"Ульяновская область"]
[{"$nulls":8},"Хабаровский край"]
[{"$nulls":8},"Ханты-Мансийский автономный округ"]
[{"$nulls":8},"Челябинская область"]
[{"$nulls":8},"Чеченская республика"]
[{"$nulls":8},"Чувашская республика"]
[{"$nulls":8},"Чукотский автономный округ"]
[{"$nulls":8},"Ямало-Ненецкий автономный округ"]
[{"$nulls":8},"Ярославская область"]

{"sheet":"CheckCopy","index":13,"n_rows":10,"n_cols":8,"rows_kept":10,"hidden":true,"merged":[[7,4,7,7]]}
{"$rows_empty":7}
[{"$nulls":4},"Результаты проверки"]
[]
[{"$nulls":4},"Ссылка 1","Ссылка 2","Описание причины","Обязательность выполнения"]

{"sheet":"AllSheetsInThisWorkbook","index":14,"n_rows":32,"n_cols":2,"rows_kept":32,"hidden":true}
["Расчетные листы","Скрытые листы"]
["Инструкция","TEHSHEET"]
["Справочная информация","CheckCopy"]
["Лог обновления","AllSheetsInThisWorkbook"]
["Выбор субъекта РФ","et_union"]
["Титульный","modInfo"]
["ГВС инвестиции","REESTR_ORG"]
["ГВС показатели","modHyperlink"]
["ГВС показатели (2)","modChange"]
["Ссылки на публикации","modTitleSheetHeaders"]
["Комментарии","modServiceModule"]
["Проверка","modClassifierValidate"]
[null,"Паспорт"]
[null,"REESTR_FILTERED"]
[null,"REESTR_MO"]
[null,"modfrmReestr"]
[null,"modDblClick"]
[null,"modfrmDateChoose"]
[null,"modfrmSphereChoose"]
[null,"modReestrMO"]
[null,"modSheetMain01"]
[null,"modSheetMain03"]
[null,"modSheetMain04"]
[null,"modSheetMain06"]
[null,"modSheetMain07"]
[null,"modSheetMain08"]
[null,"modUpdTemplMain"]
[null,"modRegionSelectSub"]
[null,"modfrmCheckUpdates"]
[null,"modCommonProv"]
[null,"modProvGeneralProc"]
[null,"modThisWorkbook"]

{"sheet":"et_union","index":15,"n_rows":66,"n_cols":13,"rows_kept":66,"hidden":true,"merged":[[7,4,11,4],[21,4,24,4],[21,5,24,5],[22,6,23,6],[22,7,23,7],[29,4,32,4],[29,5,32,5],[30,6,31,6],[30,7,31,7],[42,4,43,4]]}
[]
["add_INDEX_range"]
[]
[{"$nulls":6},"тыс.руб."]
[]
["add_INDEX_WARM_range"]
[]
[{"$nulls":4},"3.2.1",null,"тыс.руб."]
[{"$nulls":5},"Стоимость","тыс.руб."]
[{"$nulls":5},"Объем"]
[{"$nulls":5},"Стоимость 1й единицы объема с учетом доставки (транспортировки)","тыс.руб.",{"$f":"nerr(H8/H10)","v":{"v":0,"d":"0.00"}}]
[{"$nulls":5},"Способ приобретения","x"]
[]
["add_INDEX_HVS_object_range"]
[]
[{"$nulls":6},"%"]
[]
["add_INDEX_2_SUPPLIER_range_1"]
["add_INDEX_2_ACQUISITION_range_1"]
["add_INDEX_2_RECORD_range"]
[]
[{"$nulls":4},"1.1.1",null,"Итого по поставщику",{"$nulls":4},{"$f":"SUM(L23:L25)","v":{"v":0,"d":"0.00"}},{"$f":"nerr(L22/costs_OPS_4)*100","v":{"v":0,"d":"0.00"}}]
[]
[{"$nulls":8},"Добавить запись"]
[{"$nulls":6},"Добавить способ"]
[]
["add_INDEX_2_SUPPLIER_2_range_1"]
["add_INDEX_2_ACQUISITION_2_range_1"]
[]
[{"$nulls":4},"2.1.1",null,"Итого по поставщику",{"$nulls":4},{"$f":"SUM(L31:L33)","v":{"v":0,"d":"0.00"}},{"$f":"nerr(L30/costs_PH_4)*100","v":{"v":0,"d":"0.00"}}]
[]
[{"$nulls":8},"Добавить запись"]
[{"$nulls":6},"Добавить способ"]
[]
["add_HYPERLINK_range"]
[]
[]
[]
[]
["add_MR_range"]
["add_MO_range"]
[]
[]
[{"$nulls":5},"Добавить МО"]
[]
[]
["edit_ipr_pub"]
[]
[{"$nulls":4},"1.1","Информация об инвестиционных программах и отчетах об их реализации **"]
[{"$nulls":4},"1.1.1",{"$f":"\"Сайт\"&IF(strPublication=\"На официальном сайте организации\",\" организации \",\" \")&\"в сети Интернет\"","v":"Сайт в сети Интернет"},{"$nulls":3},"x","x"]
[{"$nulls":4},"1.1.2","Печатное издание",{"$nulls":5},"x"]
[]
[]
["edit_ipr_pub_SPb"]
[]
[{"$nulls":4},"1.1","Информация об инвестиционных программах и отчетах об их реализации **"]
[{"$nulls":4},"1.1.1",{"$f":"\"Сайт\"&IF(strPublication=\"На официальном сайте организации\",\" организации \",\" \")&\"в сети Интернет\"","v":"Сайт в сети Интернет"},{"$nulls":3},"x","x"]
[{"$nulls":4},"1.1.2","Печатное издание",{"$nulls":5},"x"]
[{"$nulls":4},"1.1.3","Электронная версия печатного издания"]
[]
["edit_ipr_pub_comm"]
["edit_ipr_pub_comm_SPb"]
[]
[{"$nulls":4},"**","Информация подлежит публикованию в официальных печатных изданиях (со ссылкой на адрес сайта в сети Интернет)."]
[]
["add_COMMENTS_range"]

{"sheet":"modInfo","index":16,"n_rows":17,"n_cols":2,"rows_kept":17,"hidden":true}
[null,"Титульный"]
[null,"В зависимости от выбранного значения в поле \"Публикация\" изменяется содержание и количество листов"]
[null,{"$f":" IF(TSphere = \"ТБО\", \"Перечислите все муниципальные районы, в которых организация осуществляет услуги по утилизации (захоронению) твердых бытовых отходов\", \"В случае, если тариф не дифференцируется по системам \"&IF(TSphere = \"ТС\",\"теплоснабжения\",\"коммунальной инфраструктуры\")&\", перечислите все муниципальные районы, в которых организация осуществляет услуги \" &TSphere_full)","v":"В случае, если тариф не дифференцируется по системам коммунальной инфраструктуры, перечислите все муниципальные районы, в которых организация осуществляет услуги горячего водоснабжения"}]
[null,{"$f":" IF(TSphere = \"ТБО\", \"Перечислите все муниципальные образования, в которых организация осуществляет услуги по утилизации (захоронению) твердых бытовых отходов\", \"В случае, если тариф не дифференцируется по системам \"&IF(TSphere = \"ТС\",\"теплоснабжения\",\"коммунальной инфраструктуры\")&\", перечислите все муниципальные образования, в которых организация осуществляет услуги \" &TSphere_full)","v":"В случае, если тариф не дифференцируется по системам коммунальной инфраструктуры, перечислите все муниципальные образования, в которых организация осуществляет услуги горячего водоснабжения"}]
[null,"Признак дифференциации тарифа"]
[null,{"$f":"\"В случае, если тариф не дифференцируется по системам \"&IF(TSphere = \"ТС\",\"теплоснабжения\",\"коммунальной инфраструктуры\")&\", укажите \"\"1\"\".\nВыберите значение из списка, указав очередной условный порядковый номер системы \"&IF(TSphere = \"ТС\",\"теплоснабжения\",\"коммунальной инфраструктуры\")","v":"В случае, если тариф не дифференцируется по системам коммунальной инфраструктуры, укажите \"1\".\nВыберите значение из списка, указав очередной условный порядковый номер системы коммунальной инфраструктуры"}]
[null,"Задайте период регулирования, выбрав начало и окончание очередного периода с помощью календаря /выполните двойной щелчок по соответствующей синей ячейке/.\nИнформация раскрывается регулируемой организацией не позднее 30 дней со дня сдачи годового бухгалтерского баланса в налоговые органы и должна соответствовать годовой бухгалтерской отчетности за отчетный год"]
[null,"Укажите является ли данное юридическое лицо подразделением(филиалом) другой организации"]
[null,"Выполните двойной щелчок по синей ячейке в соответствующей строке, чтобы ввести дату"]
[null,"Нажмите на кнопку \"Выбор организации\", чтобы выбрать организацию или обновить реестр"]
[null,"Нажмите на кнопку \"Обновить реестр МО\", чтобы обновить реестр МР/МО"]
[null,"Для выбора того или иного источника публикации выполните двойной щелчок по синей ячейке напротив соответствующего источника.\nВНИМАНИЕ! Если Вы снимаете галочку с пункта, то будут скрыты и очищены соответствующие строки на листе \"Ссылки на публикации\"!"]
[null,"В зависимости от выбранного значения в поле \"Вид товара\" изменяется содержание и количество листов"]
[null,"Показатели (2)"]
[null,"Указывается информация о поставке товаров и услуг, стоимость которых превышает 20% суммы поставки товаров и услуг по каждой из организаций"]
[null,"Ссылки на публикации"]
[null,"Вводите адрес сайта, не нарушая цвет ячейки /если копируете гиперссылку из браузера, то выполните двойной щелчок по ячейке и только после этого можете вставить скопированный элемент/"]

{"sheet":"REESTR_ORG","index":17,"n_rows":78,"n_cols":8,"rows_kept":78,"hidden":true}
["№","МР","МО","МО ОКТМО","ОРГАНИЗАЦИЯ","ИНН","КПП","ВИД ДЕЯТЕЛЬНОСТИ"]
[1,"Алтайский","Алтайский","95605000","МУП \"ПРОГРЕСС\"","1901125790","190101001","Оказание услуг в сфере горячего водоснабжения"]
[2,"Алтайский","Алтайский","95605000","МУП ЖКХ \"Очуры\"","1901126890","190101001","Оказание услуг в сфере горячего водоснабжения"]
[3,"Алтайский","Белоярское","95605410","МУП \"ПРОГРЕСС\"","1901125790","190101001","Оказание услуг в сфере горячего водоснабжения"]
[4,"Алтайский","Белоярское","95605410","ОАО \"Белоярский тепловодоканал\"","1901098096","190101001","Оказание услуг в сфере горячего водоснабжения"]
[5,"Алтайский","Белоярское","95605410","ООО \"Алтай ЭнергоРесурс\"","1904005131","190401001","Оказание услуг в сфере горячего водоснабжения"]
[6,"Алтайский","Белоярское","95605410","ООО \"Теплоэнрегия\"","1901115263","190101001","Оказание услуг в сфере горячего водоснабжения"]
[7,"Алтайский","Белоярское","95605410","ООО \"УЖКС\"","1901120619","190101001","Оказание услуг в сфере горячего водоснабжения"]
[8,"Алтайский","Очурское","95605440","МУП ЖКХ \"Очуры\"","1901126890","190101001","Оказание услуг в сфере горячего водоснабжения"]
[9,"Алтайский","Подсинское","95605445","ГУП \"Хакресводоканал\"","1901001202","191001001","Оказание услуг в сфере горячего водоснабжения"]
[10,"Алтайский","Подсинское","95605445","МУП ЖКХ с.Подсинее","1904003198","190401001","Оказание услуг в сфере горячего водоснабжения"]
[11,"Аскизский","Аскизское","95608405","ООО \"Аскизсервис\"","1905009450","190501001","Оказание услуг в сфере горячего водоснабжения"]
[12,"Аскизский","Аскизское","95608405","ООО \"Аскизтеплосервис\"","1905011748","190501001","Оказание услуг в сфере горячего водоснабжения"]
[13,"Аскизский","Бельтирское","95608412","МУП \"Бельтирское ЖКХ\"","1905010342","190501001","Оказание услуг в сфере горячего водоснабжения"]
[14,"Аскизский","Кызласское","95608430","ООО \"Чазой\" с.Кызлас","1905009756","190501001","Оказание услуг в сфере горячего водоснабжения"]
[15,"Аскизский","Поселок Аскиз","95608151","МУП МО Аскизский поссовет \"Аскизские тепловые сети\"","1905010720","190501001","Оказание услуг в сфере горячего водоснабжения"]
[16,"Аскизский","Поселок Аскиз","95608151","ООО \"Тепловик\"","1905009918","190501001","Оказание услуг в сфере горячего водоснабжения"]
[17,"Аскизский","Поселок Вершина Теи","95608169","ООО \"Тейские энергосети\"","1905008664","190501001","Оказание услуг в сфере горячего водоснабжения"]
[18,"Аскизский","Поселок Вершина Теи","95608169","ООО \"УК ВСТМ г. Абаза\"","1909001557","190901001","Оказание услуг в сфере горячего водоснабжения"]
[19,"Бейский","Бейское","95612405","МУП \"Теплосеть\" с.Бея","1902024932","190201001","Оказание услуг в сфере горячего водоснабжения"]
[20,"Бейский","Бейское","95612405","ООО \"Теплоресурс\"","1906004581","190601001","Оказание услуг в сфере горячего водоснабжения"]
[21,"Бейский","Бейское","95612405","ООО \"Теплосервис\"","1902025527","190201001",""]
[22,"Бейский","Новоенисейское","95612440","МУП ЖКХ с.Новоенисейка","1906005539","190601001","Оказание услуг в сфере горячего водоснабжения"]
[23,"Боградский","Боградский","95615000","ГУП \"Хакресводоканал\"","1901001202","191001001","Оказание услуг в сфере горячего водоснабжения"]
[24,"Боградский","Боградское","95615410","ГУП \"Хакресводоканал\"","1901001202","191001001","Оказание услуг в сфере горячего водоснабжения"]
[25,"Боградский","Боградское","95615410","ООО \"Водоканал Боградского района\"","1907004094","190701001","Оказание услуг в сфере горячего водоснабжения"]
[26,"Боградский","Боградское","95615410","ООО \"Хакасресводоканал Боградского района\"","1907004062","190701001","Оказание услуг в сфере горячего водоснабжения"]
[27,"Боградский","Бородинское","95615420","ГУП \"Хакресводоканал\"","1901001202","191001001","Оказание услуг в сфере горячего водоснабжения"]
[28,"Боградский","Бородинское","95615420","ООО \"Водоканал Боградского района\"","1907004094","190701001","Оказание услуг в сфере горячего водоснабжения"]
[29,"Боградский","Бородинское","95615420","ООО \"Хакасресводоканал Боградского района\"","1907004062","190701001","Оказание услуг в сфере горячего водоснабжения"]
[30,"Боградский","Сонское","95615460","ГУП \"Хакресводоканал\"","1901001202","191001001","Оказание услуг в сфере горячего водоснабжения"]
[31,"Боградский","Сонское","95615460","ООО \"Водоканал Боградского района\"","1907004094","190701001","Оказание услуг в сфере горячего водоснабжения"]
[32,"Боградский","Сонское","95615460","ООО \"Хакасресводоканал Боградского района\"","1907004062","190701001","Оказание услуг в сфере горячего водоснабжения"]
[33,"Орджоникидзевский","Копьёвский поссовет","95620403","МУП \"Копьевское ЖКХ\"","1908003015","190801001","Оказание услуг в сфере горячего водоснабжения"]
[34,"Орджоникидзевский","Приисковое","95620437","МКП \"Приисковое ЖКХ\"","1908003135","190801001","Оказание услуг в сфере горячего водоснабжения"]
[35,"Таштыпский","Таштыпское","95625440","ООО \"Тасхыл\"","1909001677","190901001","Оказание услуг в сфере горячего водоснабжения"]
[36,"Усть-Абаканский","Опытненское","95630435","ООО \"Прогресс-Сервис\"","1910010891","191001001","Оказание услуг в сфере горячего водоснабжения"]
[37,"Усть-Абаканский","Поселок Усть-Абакан","95630151","ГУП \"Хакресводоканал\"","1901001202","191001001","Оказание услуг в сфере горячего водоснабжения"]
[38,"Усть-Абаканский","Поселок Усть-Абакан","95630151","ООО \"Прогресс-Сервис\"","1910010891","191001001","Оказание услуг в сфере горячего водоснабжения"]
[39,"Усть-Абаканский","Поселок Усть-Абакан","95630151","ООО \"ТВК Усть-Абакан\"","1910012384","191001001","Оказание услуг в сфере горячего водоснабжения"]
[40,"Усть-Абаканский","Расцветовское","95630445","ООО \"ТеплоТранс\"","1910013155","191001001","Оказание услуг в сфере горячего водоснабжения"]
[41,"Усть-Абаканский","Расцветовское","95630445","ООО \"Теплоресурс\"","1910012352","191001001",""]
[42,"Усть-Абаканский","Расцветовское","95630445","ООО \"Термолайн\"","1910012810","191001001","Оказание услуг в сфере горячего водоснабжения"]
[43,"Усть-Абаканский","Солнечное","95630460","МБУ \"Теплоснаб\"","1910011743","191001001","Оказание услуг в сфере горячего водоснабжения"]
[44,"Ширинский","Борцовское","95635410","ООО \"Коммунальное хозяйство \"Борец\"","1911008084","191101001","Оказание услуг в сфере горячего водоснабжения"]
[45,"Ширинский","Борцовское","95635410","ООО \"Хакресводоканал Ширинского района\"","1911008542","191101001","Оказание услуг в сфере горячего водоснабжения"]
[46,"Ширинский","Коммунаровский сельсовет","95635401","ГУП \"Хакресводоканал\"","1901001202","191001001","Оказание услуг в сфере горячего водоснабжения"]
[47,"Ширинский","Коммунаровский сельсовет","95635401","ООО \"Хакасресводоканал Ширинского района\"","1911008422","191101001","Оказание услуг в сфере горячего водоснабжения"]
[48,"Ширинский","Коммунаровский сельсовет","95635401","ООО \"Хакресводоканал Ширинского района\"","1911008542","191101001","Оказание услуг в сфере горячего водоснабжения"]
[49,"Ширинский","Туимский сельсовет","95635403","ГУП \"Хакресводоканал\"","1901001202","191001001","Оказание услуг в сфере горячего водоснабжения"]
[50,"Ширинский","Туимский сельсовет","95635403","ООО \"Хакасресводоканал Ширинского района\"","1911008422","191101001","Оказание услуг в сфере горячего водоснабжения"]
[51,"Ширинский","Туимский сельсовет","95635403","ООО \"Хакресводоканал Ширинского района\"","1911008542","191101001","Оказание услуг в сфере горячего водоснабжения"]
[52,"Ширинский","Целинное","95635455","МУП \"ЖКХ п.Целинное\"","1911005816","191101001","Оказание услуг в сфере горячего водоснабжения"]
[53,"Ширинский","Целинное","95635455","ООО \"Хакресводоканал Ширинского района\"","1911008542","191101001","Оказание услуг в сфере горячего водоснабжения"]
[54,"Ширинский","Ширинский сельсовет","95635404","ГУП \"Хакресводоканал\"","1901001202","191001001","Оказание услуг в сфере горячего водоснабжения"]
[55,"Ширинский","Ширинский сельсовет","95635404","ООО \"Фирма \"Ригор\"","2466095756","246601001","Оказание услуг в сфере горячего водоснабжения"]
[56,"Ширинский","Ширинский сельсовет","95635404","ООО \"Хакасресводоканал Ширинского района\"","1911008422","191101001","Оказание услуг в сфере горячего водоснабжения"]
[57,"город Абаза","город Абаза","95702000","ГУП \"Хакресводоканал\"","1901001202","191001001","Оказание услуг в сфере горячего водоснабжения"]
[58,"город Абаза","город Абаза","95702000","ООО \"Абаза-Энерго\"","1909051981","190901001","Оказание услуг в сфере горячего водоснабжения"]
[59,"город Абаза","город Абаза","95702000","ООО \"УК \"Наш дом\"","1909000585","190901001","Оказание услуг в сфере горячего водоснабжения"]
[60,"город Абакан","город Абакан","95701000","ГУП \"Хакресводоканал\"","1901001202","191001001","Оказание услуг в сфере горячего водоснабжения"]
[61,"город Абакан","город Абакан","95701000","МП \"Абаканские тепловые сети\"","1901003640","190101001","Оказание услуг в сфере горячего водоснабжения"]
[62,"город Абакан","город Абакан","95701000","Филиал \"Абаканская ТЭЦ\"  ОАО \"Енисейская ТГК (ТГК-13)\"","1901067718","190103001","Оказание услуг в сфере горячего водоснабжения"]
[63,"город Саяногорск","город Саяногорск","95708000","ИП Басков В.В.","190200321555","190201001","Поставка горячей воды"]
[64,"город Саяногорск","город Саяногорск","95708000","МУП \"Тепловые сети\"","1902017371","190201003","Оказание услуг в сфере горячего водоснабжения"]
[65,"город Саяногорск","город Саяногорск","95708000","ООО \"Хакасские коммунальные системы\"","1902024682","190201001",""]
[66,"город Саяногорск","город Саяногорск","95708000","ОП ЗАО \"Байкалэнерго\" - \"Саяногорские тепловые сети\"","3808108339","381201001","Оказание услуг в сфере горячего водоснабжения"]
[67,"город Сорск","город Сорск","95709000","ГУП \"Хакресводоканал\"","1901001202","191001001","Оказание услуг в сфере горячего водоснабжения"]
[68,"город Сорск","город Сорск","95709000","МУП \"Коммунальные системы\"","1910013229","191001001","Оказание услуг в сфере горячего водоснабжения"]
[69,"город Сорск","город Сорск","95709000","ООО \"Горизонт\"","1911008461","191101001","Оказание услуг в сфере горячего водоснабжения"]
[70,"город Сорск","город Сорск","95709000","ООО \"Хакасресводоканал\"","1910012754","191001001","Оказание услуг в сфере горячего водоснабжения"]
[71,"город Черногорск","город Черногорск","95715000","ГУП \"Хакресводоканал\"","1901001202","191001001","Оказание услуг в сфере горячего водоснабжения"]
[72,"город Черногорск","город Черногорск","95715000","ООО \"Тепловые системы\"","1903017744","190301001","Оказание услуг в сфере горячего водоснабжения"]
[73,"город Черногорск","город Черногорск","95715000","ООО \"Теплосервис\"","1903017751","190301001","Оказание услуг в сфере горячего водоснабжения"]
[74,"город Черногорск","город Черногорск","95715000","ООО \"ХакТЭК\"","1903013620","190301001","Оказание услуг в сфере горячего водоснабжения"]
[75,"","","","ГУП \"Хакресводоканал\"","1901001202","191001001","Оказание услуг в сфере горячего водоснабжения"]
[76,"","","","ООО \"Фирма \"Ригор\"","2466095756","246601001","Оказание услуг в сфере горячего водоснабжения"]
[77,"","","","ООО \"Хакасресводоканал Ширинского района\"","1911008422","191101001","Оказание услуг в сфере горячего водоснабжения"]

{"sheet":"modHyperlink","index":18,"n_rows":0,"n_cols":0,"rows_kept":0,"hidden":true}

{"sheet":"modChange","index":19,"n_rows":0,"n_cols":0,"rows_kept":0,"hidden":true}

{"sheet":"modTitleSheetHeaders","index":20,"n_rows":0,"n_cols":0,"rows_kept":0,"hidden":true}

{"sheet":"modServiceModule","index":21,"n_rows":0,"n_cols":0,"rows_kept":0,"hidden":true}

{"sheet":"modClassifierValidate","index":22,"n_rows":0,"n_cols":0,"rows_kept":0,"hidden":true}

{"sheet":"Паспорт","index":23,"n_rows":71,"n_cols":57,"rows_kept":71,"hidden":true,"merged":[[3,3,3,10],[5,3,5,10],[6,5,6,10],[7,5,7,10],[8,5,8,10],[9,5,9,10],[10,5,10,10],[11,5,11,10],[12,5,12,10],[13,5,13,10],[14,6,14,9],[15,5,15,10],[17,3,17,10],[18,5,18,10],[19,5,19,10],[20,5,20,10],[21,5,21,10],[22,5,22,10],[23,5,23,10],[25,3,25,10],[26,5,26,10],[27,3,27,10],[29,3,29,10],[30,5,30,10],[31,7,31,10],[32,7,32,10],[33,3,33,10],[35,3,35,10],[36,8,36,10],[37,8,37,10],[38,8,38,10],[39,8,39,10],[40,8,40,10],[41,8,41,10],[42,8,42,10],[43,8,43,10],[44,8,44,10],[45,8,45,10],[46,8,46,10],[47,8,47,10],[48,8,48,10],[49,8,49,10],[50,8,50,10],[51,8,51,10],[52,8,52,10],[53,8,53,10],[54,3,54,10],[56,3,56,10],[57,5,57,10],[58,5,58,10],[59,5,59,10],[61,3,61,10],[62,5,62,10],[63,5,63,10],[64,3,64,10],[66,3,66,10],[67,5,67,10],[68,5,68,10],[69,5,69,10],[70,5,70,10]]}
[{"$nulls":47},"Код диапазона:","Название диапазона:","Сфера регулирования:","Подсфера:","Тип информации в шаблоне:","Состояние шаблона:","Периодичность:","\"Геотип\" шаблона:","Тип шаблона:","Заказчик:"]
[{"$nulls":47},"ps_sr","Сфера регулирования:","Не определено","Не определено","Не определено","Не определено","Не определено","Не определено","Не определено","Не определено"]
[{"$nulls":47},"ps_ti","Тип информации в шаблоне:","NETS","водоотведение - очистка","Статистический","Проект","Единовременный","Региональный шаблон","Атомарный","РЭК"]
[{"$nulls":3},"Паспорт к шаблону",{"$nulls":43},"ps_ssh","Состояние шаблона:","Аэропорты","водоотведение - передача","Расчетный","Утвержден","Ежемесячный","Муниципальный шаблон","Сводный","ФСТ"]
[{"$nulls":47},"ps_p","Периодичность:","Газ","водоотведение - прием","Обосновывающие материалы",null,"Ежеквартальный","Шаблон от организации",null,"Экспертная организация"]
[{"$nulls":3},"1. Общие сведения",{"$nulls":43},"ps_geo","\"Геотип\" шаблона:","Железные дороги","водоснабжение - очистка",null,null,"Ежегодный"]
[{"$nulls":3},"1.1","Код",{"$nulls":42},"ps_tsh","Тип шаблона:","ЖКХ","водоснабжение - передача"]
[{"$nulls":3},"1.2","Краткое наименование",{"$nulls":42},"ps_psr","Подсфера:","Медицина","водоснабжение - подъем"]
[{"$nulls":3},"1.3","Полное наименование",{"$nulls":42},"ps_z","Заказчик:","Порты","выработка ТС  "]
[{"$nulls":3},"1.4","Сфера регулирования ",{"$nulls":44},"Связь","выработка ТС в режиме комбинированной выработки"]
[{"$nulls":3},"1.5","Подсфера",{"$nulls":44},"Транспорт","выработка электрической энергии"]
[{"$nulls":3},"1.6","Состояние шаблона (Утвержден/Проект)",{"$nulls":44},"Электроэнергетика","выработка+передача+сбыт ТС"]
[{"$nulls":3},"1.7","Заказчик",{"$nulls":45},"передача ТС"]
[{"$nulls":3},"1.8","Отчитывается",{"$nulls":45},"передача ЭЭ"]
[{"$nulls":3},"1.9","Тип шаблона",null,"Если шаблон сводный, необходимо указать код атомарного шаблона для него:",{"$nulls":43},"сбыт ТС"]
[{"$nulls":3},"1.10","Текущая версия",{"$nulls":45},"сбыт ЭЭ"]
[{"$nulls":50},"ТБО"]
[{"$nulls":3},"2. Организационные"]
[{"$nulls":3},"2.1","Тип информации в шаблоне "]
[{"$nulls":3},"2.2","Ответственный регулятор (от заказчика)"]
[{"$nulls":3},"2.3","Ответственный специалист (от СМА)"]
[{"$nulls":3},"2.4","Ответственный программист (от СМА)"]
[{"$nulls":3},"2.5","Ответственные за сбор данных (от СМА)"]
[{"$nulls":3},"2.6","Ответственные за сбор данных (от заказчика)"]
[]
[{"$nulls":3},"3. Законодательство (методики, приказы, постановления ...)"]
[null,null,"first","3.1","Документ1"]
[null,null,"end","Добавить документ"]
[]
[{"$nulls":3},"4. Периодичность"]
[{"$nulls":3},"4.1","Периодичность"]
[{"$nulls":4},"Мониторинги(прошедшие и плановые)","Дата начала","Дата окончания","Согласно (приказ, постановление, письмо)"]
[null,null,"first","4.2.1","Мониторинг1"]
[null,null,"end","Добавить мониторинг"]
[]
[{"$nulls":3},"5. Состав шаблона"]
[{"$nulls":4},"Лист","Последняя дата изменений эскиза","Состояние листа","Наименование витрины для листа","Комментарии"]
[null,null,"first","5.1.1"]
[null,null,"Удалить","5.1.2"]
[null,null,"Удалить","5.1.3"]
[null,null,"Удалить","5.1.4"]
[null,null,"Удалить","5.1.5"]
[null,null,"Удалить","5.1.6"]
[null,null,"Удалить","5.1.7"]
[null,null,"Удалить","5.1.8"]
[null,null,"Удалить","5.1.9"]
[null,null,"Удалить","5.1.10"]
[null,null,"Удалить","5.1.11"]
[null,null,"Удалить","5.1.12"]
[null,null,"Удалить","5.1.13"]
[null,null,"Удалить","5.1.14"]
[null,null,"Удалить","5.1.15"]
[null,null,"Удалить","5.1.16"]
[null,null,"Удалить","5.1.17"]
[null,null,"end","Добавить лист"]
[]
[{"$nulls":3},"6. Сроки и даты"]
[{"$nulls":3},"6.1.1","Даты получения последних эскизов, от экспертов"]
[{"$nulls":3},"6.1.2","Даты отправки шаблона на проверку"]
[{"$nulls":3},"6.1.3","Предполагаемый срок сдачи шаблона в эксплуатацию"]
[]
[{"$nulls":3},"7. Версии"]
[{"$nulls":4},"Версия","Отличия от предыдущей"]
[null,null,"first","7.1"]
[null,null,"end","Добавить версию"]
[]
[{"$nulls":3},"8. Дополнительно"]
[{"$nulls":3},"8.1","Аналогичные(\"похожие\") шаблоны"]
[{"$nulls":3},"8.2","Особенности шаблона"]
[{"$nulls":3},"8.3","Модуль на основе данного шаблона"]
[{"$nulls":3},"8.4","Процедуры загрузки данных в витрины"]

{"sheet":"REESTR_FILTERED","index":24,"n_rows":2,"n_cols":8,"rows_kept":2,"hidden":true}
["№","МР","МО","МО ОКТМО","ОРГАНИЗАЦИЯ","ИНН","КПП","ВИД ДЕЯТЕЛЬНОСТИ"]
[1,"город Саяногорск","город Саяногорск","95708000","ОП ЗАО \"Байкалэнерго\" - \"Саяногорские тепловые сети\"","3808108339","381201001","Оказание услуг в сфере горячего водоснабжения"]

{"sheet":"REESTR_MO","index":25,"n_rows":103,"n_cols":5,"rows_kept":103,"hidden":true}
["МР","МО","МО_ОКТМО","МР","ИМЯ ДИАПАЗОНА"]
["Алтайский","Алтайский","95605000","Алтайский","MO_LIST_2"]
["Алтайский","Аршановское","95605405","Аскизский","MO_LIST_3"]
["Алтайский","Белоярское","95605410","Бейский","MO_LIST_4"]
["Алтайский","Изыхское","95605418","Боградский","MO_LIST_5"]
["Алтайский","Кировское","95605420","Орджоникидзевский","MO_LIST_6"]
["Алтайский","Краснопольское","95605425","Таштыпский","MO_LIST_7"]
["Алтайский","Новомихайловское","95605430","Усть-Абаканский","MO_LIST_8"]
["Алтайский","Новороссийское","95605435","Ширинский","MO_LIST_9"]
["Алтайский","Очурское","95605440","город Абаза","MO_LIST_10"]
["Алтайский","Подсинское","95605445","город Абакан","MO_LIST_11"]
["Аскизский","Аскизский","95608000","город Саяногорск","MO_LIST_12"]
["Аскизский","Аскизское","95608405","город Сорск","MO_LIST_13"]
["Аскизский","Базинское","95608410","город Черногорск","MO_LIST_14"]
["Аскизский","Балыксинское","95608409"]
["Аскизский","Бельтирское","95608412"]
["Аскизский","Бирикчульское","95608413"]
["Аскизский","Верх-Аскизское","95608415"]
["Аскизский","Есинское","95608420"]
["Аскизский","Кызласское","95608430"]
["Аскизский","Поселок Аскиз","95608151"]
["Аскизский","Поселок Бискамжа","95608165"]
["Аскизский","Поселок Вершина Теи","95608169"]
["Аскизский","Пуланкольское","95608440"]
["Аскизский","Усть-Камыштинское","95608450"]
["Аскизский","Усть-Чульское","95608455"]
["Бейский","Бейский","95612000"]
["Бейский","Бейское","95612405"]
["Бейский","Большемонокское","95612410"]
["Бейский","Бондаревское","95612415"]
["Бейский","Кирбинское","95612425"]
["Бейский","Куйбышевское","95612430"]
["Бейский","Межселенные территории, находящиеся вне границ сельских поселений Бейского района","95612701"]
["Бейский","Новоенисейское","95612440"]
["Бейский","Новотроицкое","95612445"]
["Бейский","Сабинское","95612455"]
["Бейский","Табатское","95612460"]
["Боградский","Боградский","95615000"]
["Боградский","Боградское","95615410"]
["Боградский","Большеербинское","95615415"]
["Боградский","Бородинское","95615420"]
["Боградский","Знаменское","95615430"]
["Боградский","Первомайское","95615440"]
["Боградский","Пушновское","95615445"]
["Боградский","Сарагашское","95615450"]
["Боградский","Советско-Хакасское","95615455"]
["Боградский","Сонское","95615460"]
["Боградский","Троицкое","95615404"]
["Орджоникидзевский","Гайдаровское","95620405"]
["Орджоникидзевский","Копьёвский поссовет","95620403"]
["Орджоникидзевский","Копьёвский сельсовет","95620420"]
["Орджоникидзевский","Красноиюсское","95620425"]
["Орджоникидзевский","Новомарьясовское","95620430"]
["Орджоникидзевский","Орджоникидзевский","95620000"]
["Орджоникидзевский","Приисковое","95620437"]
["Орджоникидзевский","Саралинское","95620440"]
["Орджоникидзевский","Устинкинское","95620450"]
["Орджоникидзевский","с. Орджоникидзевское","95620435"]
["Таштыпский","Анчулское","95625405"]
["Таштыпский","Арбатское","95625408"]
["Таштыпский","Большесейское","95625415"]
["Таштыпский","Бутрахтинское","95625420"]
["Таштыпский","Имекское","95625422"]
["Таштыпский","Матурское","95625425"]
["Таштыпский","Межселенная территория Таштыпского муниципального района, включающая п Кубайка, п Большой Он, п Малый Анзас","95625702"]
["Таштыпский","Нижнесирское","95625430"]
["Таштыпский","Таштыпский","95625000"]
["Таштыпский","Таштыпское","95625440"]
["Усть-Абаканский","Вершино-Биджинское","95630405"]
["Усть-Абаканский","Весенненское","95630410"]
["Усть-Абаканский","Доможаковское","95630415"]
["Усть-Абаканский","Калининское","95630425"]
["Усть-Абаканский","Московское","95630430"]
["Усть-Абаканский","Опытненское","95630435"]
["Усть-Абаканский","Поселок Усть-Абакан","95630151"]
["Усть-Абаканский","Райковское","95630440"]
["Усть-Абаканский","Расцветовское","95630445"]
["Усть-Абаканский","Сапоговское","95630455"]
["Усть-Абаканский","Солнечное","95630460"]
["Усть-Абаканский","Усть-Абаканский","95630000"]
["Усть-Абаканский","Усть-Бюрское","95630465"]
["Усть-Абаканский","Чарковское","95630470"]
["Ширинский","Беренжакское","95635405"]
["Ширинский","Борцовское","95635410"]
["Ширинский","Воротское","95635415"]
["Ширинский","Ефремкинское","95635425"]
["Ширинский","Жемчужненский сельсовет","95635430"]
["Ширинский","Коммунаровский сельсовет","95635401"]
["Ширинский","Селосонское","95635435"]
["Ширинский","Соленоозерное","95635438"]
["Ширинский","Спиринское","95635440"]
["Ширинский","Туимский сельсовет","95635403"]
["Ширинский","Фыркальское","95635450"]
["Ширинский","Целинное","95635455"]
["Ширинский","Черноозерное","95635460"]
["Ширинский","Ширинский","95635000"]
["Ширинский","Ширинский сельсовет","95635404"]
["Ширинский","село Джирим","95635420"]
["город Абаза","город Абаза","95702000"]
["город Абакан","город Абакан","95701000"]
["город Саяногорск","город Саяногорск","95708000"]
["город Сорск","город Сорск","95709000"]
["город Черногорск","город Черногорск","95715000"]

{"sheet":"modfrmReestr","index":26,"n_rows":0,"n_cols":0,"rows_kept":0,"hidden":true}

{"sheet":"modDblClick","index":27,"n_rows":0,"n_cols":0,"rows_kept":0,"hidden":true}

{"sheet":"modfrmDateChoose","index":28,"n_rows":0,"n_cols":0,"rows_kept":0,"hidden":true}

{"sheet":"modfrmSphereChoose","index":29,"n_rows":0,"n_cols":0,"rows_kept":0,"hidden":true}

{"sheet":"modSheetMain01","index":30,"n_rows":0,"n_cols":0,"rows_kept":0,"hidden":true}

{"sheet":"modSheetMain03","index":31,"n_rows":0,"n_cols":0,"rows_kept":0,"hidden":true}

{"sheet":"modSheetMain04","index":32,"n_rows":0,"n_cols":0,"rows_kept":0,"hidden":true}

{"sheet":"modSheetMain06","index":33,"n_rows":0,"n_cols":0,"rows_kept":0,"hidden":true}

{"sheet":"modSheetMain07","index":34,"n_rows":0,"n_cols":0,"rows_kept":0,"hidden":true}

{"sheet":"modSheetMain08","index":35,"n_rows":0,"n_cols":0,"rows_kept":0,"hidden":true}

{"sheet":"modUpdTemplMain","index":36,"n_rows":0,"n_cols":0,"rows_kept":0,"hidden":true}

{"sheet":"modRegionSelectSub","index":37,"n_rows":0,"n_cols":0,"rows_kept":0,"hidden":true}

{"sheet":"modfrmCheckUpdates","index":38,"n_rows":0,"n_cols":0,"rows_kept":0,"hidden":true}

{"sheet":"modCommonProv","index":39,"n_rows":0,"n_cols":0,"rows_kept":0,"hidden":true}

{"sheet":"modProvGeneralProc","index":40,"n_rows":0,"n_cols":0,"rows_kept":0,"hidden":true}

{"sheet":"modThisWorkbook","index":41,"n_rows":1,"n_cols":3,"rows_kept":1,"hidden":true}
[null,null,{"$f":"\"modServiceModule.IsNameExists(wbBook, \"\"\"&A1&\"\"\") = False Or \" &  \"modServiceModule.IsNameExists(wbBook, \"\"\"&A2&\"\"\") = False or _\"","v":"modServiceModule.IsNameExists(wbBook, \"\") = False Or modServiceModule.IsNameExists(wbBook, \"\") = False or _"}]